Cogmind - Beta 10.2 @@@ ROGUE MODE // 2021.11.24 @ 02:45:47 Player: Geraldon Result: Destroyed by Tracker with Immobilizer Performance ------------- Evolutions (8) 4000 Regions Visited (34) 6800 Robots Destroyed (237) 1185 Value Destroyed (7928) 7928 Prototype IDs (122) 2440 Alien Tech Used (4) 800 Bonus (10353) 10353 TOTAL SCORE: 33506 Bonus ------- High Alert Combat Kills 1889 Follower Combat Kills 3275 Entered Garrisons 200 Used RIF Installer 500 Network Hubs Disabled 200 Aligned with FarCom 300 Met Data Miner 300 Met Zhirov 300 Met Warlord at Base 500 MAIN.C Attacked Warlord 500 Read Decrypted Archives 300 Found Hidden Lab 3000 Pursued by Intercept 500 Friendly Fire -1411 Cogmind --------- Core Integrity 0/1450 Matter 252/300 Energy 100/100 System Corruption 9% Temperature Cool (0) Movement Core (50) Location -2/Research Parts ------- > --- POWER (2) -------- (None) > --- PROPULSION (6) --- (None) > --- UTILITY (12) ----- Advanced Armor Integrity Analyzer Hacking Suite Advanced Hacking Suite Advanced System Shield Advanced System Shield Advanced System Shield > --- WEAPON (3) ------- (None) > --- INVENTORY (4) ---- Experimental Energy Well (1000) Advanced Matter Compressor (109) Advanced Kinecellerator Antimissile System Peak State ------------ > --- POWER ------------ Micro Fission Core > --- PROPULSION ------- Cooled Nuclear Pulse Thruster Cooled Nuclear Pulse Thruster Impulse Thruster Impulse Thruster Impulse Thruster Cooled Impulse Thruster > --- UTILITY ---------- Medium Storage Unit Experimental Energy Well Advanced Armor Integrity Analyzer Hacking Suite Improved Hacking Suite Improved Hacking Suite Advanced Hacking Suite Advanced System Shield Advanced System Shield Advanced System Shield Quantum Router > --- WEAPON ----------- Improved KE Penetrator Tri-rail Accelerator > --- INVENTORY -------- Field Propulsion Drive Advanced Matter Compressor Advanced Kinecellerator Antimissile System [Rating: 139] Favorites ----------- Power Micro Fission Core Engine Ion Engine Power Core Micro Fission Core Reactor Light Antimatter Reactor Propulsion Improved VTOL Module Treads Light Treads Wheel Compact Wheel Hover Unit Improved Linear Gravjet Flight Unit Improved VTOL Module Utility Hacking Suite Device Advanced Heat Sink Storage Large Storage Unit Processor Advanced Targeting Computer Hackware Hacking Suite Protection Experimental Propulsion Shielding Weapon Minigun Energy Gun Heavy EM Shotgun Energy Cannon Heavy Neutron Cannon Ballistic Gun Minigun Ballistic Cannon Magnetic Acceleration Cannon Launcher Advanced EMP Blaster Special Weapon Advanced Remote Datajack Impact Weapon Impact Mace Slashing Weapon Power Sword Special Melee Weapon Advanced Datajack Build | -11 -10 -10 -10 -9 -8 -8 -7 -7 -7 -7 -7 -7 -6 -6 -6 -6 -6 -6 -5 -5 -5 -5 -4 -4 -4 -4 -4 -3 -3 -3 -3 -2 -2 -2 ------- Run | Scr Mat Min Exi Min Mat Sto Fac Was Fac Low Low Dat Pro Fac Ext Cet Arc Hub Fac Upp Upp War Pro Fac Upp Upp Zhi Pro Res Arm Lab Res Gar Res Slots Evolved 16 | . . . . . 4 . 2 . . . . . . 2 . . . . 2 . . . . 2 . . . . 2 . . 2 . . Power 1 | . . . . . . . . . . . . . . . . . . . . . . . . 1 . . . . . . . . . . Propulsion 4 | . . . . . 1 . . . . . . . . . . . . . 1 . . . . . . . . . 1 . . 1 . . Utility 10 | . . . . . 3 . 2 . . . . . . 1 . . . . 1 . . . . 1 . . . . 1 . . 1 . . Weapon 1 | . . . . . . . . . . . . . . 1 . . . . . . . . . . . . . . . . . . . . Parts Attached 269 | 7 8 1 2 5 33 14 13 3 16 2 1 . . 7 16 1 4 3 27 4 1 12 . 23 2 2 5 4 13 9 12 3 . 16 Power 28 | 1 1 . . 1 3 1 1 . 2 . . . . . 3 . . . 2 . . 1 . 7 . . . . 1 4 . . . . Engine 11 | 1 1 . . 1 2 1 1 . 2 . . . . . 1 . . . . . . . . . . . . . 1 . . . . . Core 13 | . . . . . 1 . . . . . . . . . 2 . . . 2 . . 1 . 5 . . . . . 2 . . . . Reactor 4 | . . . . . . . . . . . . . . . . . . . . . . . . 2 . . . . . 2 . . . . Propulsion 58 | 2 1 1 . 1 11 3 2 . 5 . . . . 2 4 . 1 . 9 . . 3 . 1 . . . . 1 4 . 1 . 6 Treads 19 | 2 1 1 . 1 11 3 . . . . . . . . . . . . . . . . . . . . . . . . . . . . Leg . | . . . . . . . . . . . . . . . . . . . . . . . . . . . . . . . . . . . Wheel 1 | . . . . . . . . . . . . . . . . . . . 1 . . . . . . . . . . . . . . . Hover 3 | . . . . . . . . . . . . . . . . . 1 . . . . . . . . . . . . . . 1 . 1 Flight 35 | . . . . . . . 2 . 5 . . . . 2 4 . . . 8 . . 3 . 1 . . . . 1 4 . . . 5 Utility 92 | 2 2 . . . 6 4 8 . . 1 1 . . 2 8 1 2 2 9 2 . 4 . 9 . 1 5 . 8 1 7 1 . 6 Device 21 | 1 . . . . 2 2 . . . . . . . . 1 1 . . 4 2 . 2 . 2 . . . . 1 . . 1 . 2 Storage 8 | 1 2 . . . . . . . . . . . . . . . . . . . . . . . . . 1 . 3 . 1 . . . Processor 4 | . . . . . 1 . . . . . . . . . . . . . . . . . . . . 1 . . 1 . 1 . . . Hackware 31 | . . . . . . . 8 . . 1 . . . 2 2 . 2 2 1 . . . . 5 . . 1 . 1 . 2 . . 4 Protection 28 | . . . . . 3 2 . . . . 1 . . . 5 . . . 4 . . 2 . 2 . . 3 . 2 1 3 . . . Artifact . | . . . . . . . . . . . . . . . . . . . . . . . . . . . . . . . . . . . Weapon 91 | 2 4 . 2 3 13 6 2 3 9 1 . . . 3 1 . 1 1 7 2 1 4 . 6 2 1 . 4 3 . 5 1 . 4 Energy Gun 12 | . . . . . 5 . . . . . . . . . 1 . . . 1 2 . 2 . . . . . . . . 1 . . . Energy Cannon 8 | . . . . . . . . 1 . . . . . 1 . . . . . . . 2 . 1 . . . . 1 . 2 . . . Ballistic Gun 23 | 2 3 . 1 3 6 1 . . 1 . . . . . . . . 1 2 . . . . . . . . 1 . . . . . 2 Ballistic Cannon 8 | . . . . . . . . . 1 . . . . . . . . . . . . . . 1 1 . . . . . 2 1 . 2 Launcher 12 | . 1 . . . 2 4 . 1 1 . . . . . . . . . . . . . . 1 . . . 2 . . . . . . Special Weapon 1 | . . . . . . . . . . . . . . . . . . . . . . . . 1 . . . . . . . . . . Impact Weapon 11 | . . . . . . 1 1 . 2 1 . . . 2 . . . . 1 . 1 . . 1 . . . 1 . . . . . . Slashing Weapon 5 | . . . . . . . . . . . . . . . . . . . 1 . . . . . 1 1 . . 2 . . . . . Piercing Weapon . | . . . . . . . . . . . . . . . . . . . . . . . . . . . . . . . . . . . Special Melee Weapon 11 | . . . 1 . . . 1 1 4 . . . . . . . 1 . 2 . . . . 1 . . . . . . . . . . Unidentified Prototypes 29 | . . . . . 4 1 1 1 . . . . . 2 . . . . 1 . . 5 . 3 . . 2 . 3 . 6 . . . Parts Lost 87 | . 2 1 . 5 5 2 . . 1 1 2 . . . 9 3 . 6 7 1 . . 1 7 . . . 5 5 2 8 . 1 13 Power 9 | . . . . 1 . 1 . . . . . . . . 1 1 . . . . . . . . . . . 1 1 1 1 . . 1 Propulsion 20 | . . 1 . 2 . . . . . . . . . . 3 1 . 2 1 . . . . . . . . . 1 . 2 . . 7 Utility 30 | . 1 . . . 2 . . . . 1 1 . . . 3 1 . 3 3 . . . . 4 . . . . 2 1 2 . 1 5 Weapon 28 | . 1 . . 2 3 1 . . 1 . 1 . . . 2 . . 1 3 1 . . 1 3 . . . 4 1 . 3 . . . Highest Loss Streak 12 | . 2 1 . 5 1 1 . . 1 1 2 . . . 2 3 . 4 2 1 . . 1 1 . . . 2 2 1 4 . 1 12 Average Slot Usage (%) 90 | . 91 97 100 96 97 99 85 92 96 100 94 92 92 92 88 74 74 67 81 98 100 94 93 90 94 100 100 94 83 92 80 68 72 76 Engine 3 | . 13 14 14 12 5 5 4 7 4 . . . . . 1 . . . . . . . . . . . . . . 1 . . . . Core 3 | . . . . . 3 3 . . 1 7 7 7 7 6 4 1 . . 3 5 5 5 5 7 10 10 10 9 4 4 7 4 4 3 Treads 8 | . 28 26 28 25 25 26 7 . . . . . . . . . . . . . . . . . . . . . . . . . . . Flight 12 | . . . . . . . 9 15 20 23 23 23 23 19 18 18 13 7 20 23 23 22 23 21 21 21 21 21 18 22 19 13 13 16 Device 2 | . 3 . . . 5 8 2 . . . . . . . . 3 . . 2 5 5 1 . 1 5 5 . . . . . 2 4 3 Storage 8 | . 17 28 28 28 18 18 6 . . . . . . . . . . . . . . . . . . . 1 . 8 9 10 13 13 9 Processor 2 | . . . . . 8 9 2 . . . . . . . . . . . . . . . . . . . 2 . . . 3 4 4 4 Hackware 28 | . . . . . . . 31 53 53 53 48 46 46 46 43 34 40 40 44 47 47 47 47 43 42 42 42 42 37 37 26 26 26 32 Protection 4 | . . . . . 12 8 2 . . . 3 7 7 6 4 9 6 6 1 . . 3 5 4 5 5 7 9 3 4 7 4 3 . Energy Gun 1 | . . . . . 4 4 . . . . . . . . . . . . 1 3 5 4 4 . . . . . . . . . . . Ballistic Gun 5 | . 27 28 14 28 12 2 . . . . . . . . . . . 1 2 5 5 1 . . . . . . . . . . . 2 Launcher 1 | . . . . . . 9 5 5 6 7 2 . . . . . . . . . . . . . . . . . . . . . . . Impact Weapon 2 | . . . . . . 1 4 7 3 7 7 7 7 7 11 6 6 6 1 . . 5 5 4 5 5 5 1 . . . . . . Slashing Weapon 1 | . . . . . . . . . . . . . . . . . . . . 5 5 . . . 1 5 10 8 3 9 1 . . . Special Melee Weapon 1 | . . . 13 . . . 4 1 3 . . . . . . . 3 1 2 . . . . 1 . . . . . . . . . . Naked Turns . | . . . . . . . . . . . . . . . . . . . . . . . . . . . . . . . . . . . Heaviest Build 57 | 12 40 40 41 42 57 57 49 9 15 8 11 11 11 21 21 16 7 9 21 24 22 22 17 27 31 31 22 30 32 35 45 21 21 26 Greatest Support 63 | 40 40 40 40 40 63 60 60 12 18 18 18 18 18 22 22 20 8 11 24 24 24 24 28 44 34 34 34 34 50 50 45 29 29 49 Greatest Overweight (x) 2 | . . 1 1 2 2 . . . 1 . . . . 1 1 . . 1 1 . . 1 . . . . . . . 1 . . . 1 Average Overweight (x) . | . . . . 1 . . . . . . . . . . . . . . . . . . . . . . . . . . . . . . Largest Inventory Capacity 16 | 6 16 16 16 16 16 16 16 4 4 4 4 4 4 4 4 4 4 4 4 4 4 4 4 4 4 4 4 4 8 8 8 8 8 8 Average Capacity 8 | 5 8 16 16 16 16 16 9 4 4 4 4 4 4 4 4 4 4 4 4 4 4 4 4 4 4 4 4 4 7 8 8 8 8 7 Most Carried 16 | 4 8 8 9 14 16 16 16 4 4 4 4 4 4 4 4 3 4 4 4 4 4 4 4 4 4 4 4 4 8 8 8 8 8 8 Average Carried 7 | 1 5 7 7 10 15 15 8 4 3 3 4 4 4 3 2 2 3 3 3 4 4 3 4 3 4 4 3 3 7 7 6 7 8 7 Final Capacity 16 | 6 16 16 16 16 16 16 4 4 4 4 4 4 4 4 4 4 4 4 4 4 4 4 4 4 4 4 4 4 8 8 8 8 8 4 Final Carried 16 | 1 8 7 9 11 15 16 4 4 4 4 4 4 4 4 3 3 3 4 4 4 4 4 4 4 4 4 4 4 8 7 7 8 8 4 Class Distribution -------------------- 58% | Wizard-Sprinter 26% | Mutant 5% | Wizard-Mutant 5% | Scavenger-Mutant Dominant Class ---------------- Mutant | -10/Materials Mutant | -10/Mines Mutant | -10/Exiles Mutant | -9/Mines Mutant | -8/Materials Scavenger-Mutant | -8/Storage Wizard-Sprinter | -7/Factory Wizard-Sprinter | -7/Waste Wizard-Sprinter | -7/Factory Wizard-Sprinter | -7/Lower Caves Wizard-Sprinter | -7/Lower Caves Wizard-Sprinter | -7/Data Miner Wizard-Sprinter | -6/Proximity Caves Wizard-Sprinter | -6/Factory Wizard-Sprinter | -6/Extension Wizard-Sprinter | -6/Cetus Wizard-Mutant | -6/Archives Wizard-Mutant | -6/Hub_04(d) Wizard-Sprinter | -5/Factory Wizard-Sprinter | -5/Upper Caves Wizard-Sprinter | -5/Upper Caves Wizard-Sprinter | -5/Warlord Wizard-Sprinter | -4/Proximity Caves Wizard-Sprinter | -4/Factory Wizard-Sprinter | -4/Upper Caves Wizard-Sprinter | -4/Upper Caves Wizard-Sprinter | -4/Zhirov Wizard-Sprinter | -3/Proximity Caves Wizard-Sprinter | -3/Research Wizard-Sprinter | -3/Armory Wizard-Mutant | -3/Lab Wizard-Sprinter | -2/Research Wizard-Sprinter | -2/Garrison Wizard-Sprinter | -2/Research Resources | -11 -10 -10 -10 -9 -8 -8 -7 -7 -7 -7 -7 -7 -6 -6 -6 -6 -6 -6 -5 -5 -5 -5 -4 -4 -4 -4 -4 -3 -3 -3 -3 -2 -2 -2 ----------- Run | Scr Mat Min Exi Min Mat Sto Fac Was Fac Low Low Dat Pro Fac Ext Cet Arc Hub Fac Upp Upp War Pro Fac Upp Upp Zhi Pro Res Arm Lab Res Gar Res Matter Collected 5099 | 217 489 64 . 131 1261 395 41 . 374 60 10 . . 50 155 25 40 20 148 149 10 36 84 715 23 92 . 240 103 137 . . . 30 Remotely 253 | 80 173 . . . . . . . . . . . . . . . . . . . . . . . . . . . . . . . . . Salvage Created 9258 | 51 623 99 . 56 2486 2332 41 . 648 60 . . 52 217 251 . 142 114 671 35 . . 38 691 . 91 . 272 167 121 . . . . Parts 486 | 3 41 10 . 3 118 128 5 . 35 2 . . . 6 15 . 5 7 28 . . . 1 38 . 5 . 22 6 8 . . . . Haulers Intercepted 19 | . 2 . . . 5 5 1 . . . . . . 1 . . . . 1 . . . . 3 . . . . 1 . . . . . Recyclers Shooed 2 | . . . . . . . . . . . . . . 1 . . . . . . . . . . . . . . . . . . . 1 Parts Field Recycled . | . . . . . . . . . . . . . . . . . . . . . . . . . . . . . . . . . . . Retrieved Matter . | . . . . . . . . . . . . . . . . . . . . . . . . . . . . . . . . . . . Parts Self-Destructed 72 | . . . . . . . . . . 1 . . 16 . . . . . . . 2 30 . . . 5 . 18 . . . . . . Prevented 8 | . . . . . . . . . . . . . . . . . . . . . 1 4 1 . . . . 2 . . . . . . Kills | -11 -10 -10 -10 -9 -8 -8 -7 -7 -7 -7 -7 -7 -6 -6 -6 -6 -6 -6 -5 -5 -5 -5 -4 -4 -4 -4 -4 -3 -3 -3 -3 -2 -2 -2 ------- Run | Scr Mat Min Exi Min Mat Sto Fac Was Fac Low Low Dat Pro Fac Ext Cet Arc Hub Fac Upp Upp War Pro Fac Upp Upp Zhi Pro Res Arm Lab Res Gar Res Combat Hostiles Destroyed 155 | . 11 6 . 1 47 23 . . 13 4 . . . 1 3 . . 4 14 . . . . 13 . 2 . 10 1 1 1 . . . Melee 6 | . . . . . . . . . . . . . . . . . . 1 . . . . . . . . . 3 1 1 . . . . Guns 71 | . 9 6 . 1 35 7 . . 10 . . . . . 1 . . . 1 . . . . . . . . 1 . . . . . . Cannons 5 | . . . . . . . . . . . . . . 1 1 . . . . . . . . . . 2 . . . . 1 . . . AOE 63 | . 2 . . . 9 14 . . 3 4 . . . . . . . . 12 . . . . 13 . . . 6 . . . . . . Classes Destroyed 18 | 1 7 . . 1 2 2 . . . 1 . . . . 1 . . . 1 . . . . 1 . . . . . 1 . . . . Worker 10 | . . . . . . 5 . . 1 . . . . . . . . . 1 . . . . 3 . . . . . . . . . . Builder 13 | . 2 . . . 1 5 . . 2 . . . . . . . . 1 1 . . . . 1 . . . . . . . . . . Tunneler 1 | . . . . . . . . . . . . . . . . . . . . . . . . 1 . . . . . . . . . . Hauler 19 | . 2 . . . 5 5 1 . . . . . . 1 . . . . 1 . . . . 3 . . . . 1 . . . . . Recycler 8 | 1 1 . . . 2 4 . . . . . . . . . . . . . . . . . . . . . . . . . . . . Minesweeper 3 | . . . . . . . . . . 1 . . . . . . . . . 1 . . 1 . . . . . . . . . . . Mechanic 1 | . 1 . . . . . . . . . . . . . . . . . . . . . . . . . . . . . . . . . Operator 14 | . 4 . . . 2 3 . . . . . . . . 2 . . . . . . . . 3 . . . . . . . . . . Watcher 8 | . 1 . . . 1 1 . . . . . . . 1 . . . . 1 . . . . 2 . . . . . 1 . . . . Swarmer 56 | . 3 6 . . 15 . . . 3 4 . . . . . . . 4 1 . . . . 11 . . . 9 . . . . . . Grunt 59 | . 8 . . . 20 14 . . 4 . . . . 1 1 . . . 10 . . . . 1 . . . . . . . . . . Brawler 2 | . . . . . 1 . . . . . . . . . 1 . . . . . . . . . . . . . . . . . . . Duelist 5 | . . . . 1 1 1 . . 1 . . . . . . . . . 1 . . . . . . . . . . . . . . . Protector 1 | . . . . . . . . . . . . . . . . . . . . . . . . . . . . . . 1 . . . . Sentry 27 | . . . . . 10 12 . . 2 . . . . . . . . . 1 . . . . . . 1 . 1 . . . . . . Hunter 5 | . . . . . . 1 . . 3 . . . . . . . . . . . . . . 1 . . . . . . . . . . Programmer 3 | . . . . . . . . . . . . . . . . . . . 1 . . . . . . 1 . . 1 . . . . . Behemoth 1 | . . . . . . . . . . . . . . . 1 . . . . . . . . . . . . . . . . . . . Best Kill Streak 12 | 1 7 3 . 1 7 12 1 . 11 4 . . . 1 1 . . 2 7 1 . . 1 8 . 1 . 4 1 1 1 . . . Combat Bots Only 10 | . 3 3 . 1 6 5 . . 10 4 . . . 1 1 . . 2 5 . . . . 6 . 1 . 4 1 1 1 . . . Max Kills in Single Turn 7 | 1 2 2 . 1 3 5 1 . 2 2 . . . 1 1 . . 1 7 1 . . 1 6 . 1 . 2 1 1 1 . . . Gunslinging 1 | . . 1 . . . . . . . . . . . . . . . . . . . . . . . . . . . . . . . . Exploded 5 | . 1 . . . 2 2 . . 2 2 . . . . . . . . 5 . . . . 5 . . . 2 . . . . . . Melee 1 | . . . . . . . . . . . . . . . . . . 1 . . . . . . . . . 1 1 1 . . . . Uniques/NPCs Destroyed 1 | . . . . . . . . . . . . . . . . . . . . . . . . . . . . . . . 1 . . . A5 (-3/Lab) Combat | -11 -10 -10 -10 -9 -8 -8 -7 -7 -7 -7 -7 -7 -6 -6 -6 -6 -6 -6 -5 -5 -5 -5 -4 -4 -4 -4 -4 -3 -3 -3 -3 -2 -2 -2 -------- Run | Scr Mat Min Exi Min Mat Sto Fac Was Fac Low Low Dat Pro Fac Ext Cet Arc Hub Fac Upp Upp War Pro Fac Upp Upp Zhi Pro Res Arm Lab Res Gar Res Damage Taken 16346 | . 598 208 . 402 2483 1013 . 28 551 89 181 . . 98 891 287 . 449 1341 127 149 16 275 1179 . 157 . 928 891 384 1500 25 65 2031 Core 4232 | . 58 62 . 75 252 64 . . 252 61 54 . . 19 258 39 . 159 339 32 14 16 101 328 . 39 . 225 217 75 159 . 27 1307 Absorbed by Shields 337 | . . . . . 82 . . . . . . . . 74 153 . . . . . . . . 6 . 6 . 16 . . . . . . Core Remaining (%) 54 | 100 . . . 22 . 42 . . . . . . 47 . . . . 44 . . . . 49 . . . . 48 . . 84 . . . Volleys Fired 444 | 1 60 14 . 13 148 48 . 18 6 3 . . . 21 21 . . 3 17 . . . . 8 . 7 . 10 4 . 35 3 . 4 Largest 2 | 2 2 2 . 2 2 2 . 1 1 1 . . . 1 1 . . 1 1 . . . . 1 . 1 . 1 1 . 1 1 . 1 Hottest 200 | 40 40 40 . 43 100 100 . 30 30 30 . . . 90 90 . . 23 65 . . . . 53 . 53 . 49 110 . 200 60 . 60 Shots Fired 744 | 2 114 28 . 26 284 85 . 18 51 3 . . . 21 21 . . 3 17 . . . . 8 . 7 . 10 4 . 35 3 . 4 Gun 578 | 2 108 28 . 26 272 46 . . 45 . . . . . 12 . . 3 17 . . . . . . . . 5 2 . 12 . . . Cannon 72 | . . . . . . . . . . . . . . 21 9 . . . . . . . . 3 . 7 . . 2 . 23 3 . 4 Launcher 94 | . 6 . . . 12 39 . 18 6 3 . . . . . . . . . . . . . 5 . . . 5 . . . . . . Special . | . . . . . . . . . . . . . . . . . . . . . . . . . . . . . . . . . . . Kinetic 485 | 2 108 28 . 26 222 16 . . 45 . . . . . . . . 3 . . . . . 3 . 7 . 5 2 . 11 3 . 4 Thermal 56 | . . . . . . . . . . . . . . 21 21 . . . . . . . . . . . . . 2 . 12 . . . Explosive 44 | . 6 . . . 1 . . 18 6 3 . . . . . . . . . . . . . 5 . . . 5 . . . . . . Electromagnetic 159 | . . . . . 61 69 . . . . . . . . . . . . 17 . . . . . . . . . . . 12 . . . Robot Hit Streak 30 | 2 9 6 . 9 30 12 . 4 15 16 . . . 5 12 . . 3 7 . . . . 10 . 15 . 1 2 . 8 . . . Robot Miss Streak 4 | . 4 2 . 2 3 2 . 1 1 1 . . . 4 2 . . . 4 . . . . . . 1 . 2 1 . 3 . . . Penetration Max . | . . . . . . . . . . . . . . . . . . . . . . . . . . . . . . . . . . . Secondary Targets 9 | . 1 2 . . 6 . . . . . . . . . . . . . . . . . . . . . . . . . . . . . Max Gunslinging Chain 1 | . 1 1 . . 1 . . . . . . . . . . . . . . . . . . . . . . . . . . . . . Autonomous 45 | . . . . . . . . . 45 . . . . . . . . . . . . . . . . . . . . . . . . . Shots Hit Robots 589 | 2 60 17 4 20 221 64 2 12 43 3 . . 2 16 26 . 6 12 16 6 . . 1 10 . 6 . 8 6 6 20 . . . Core Hits 373 | 2 38 6 . 3 97 68 1 4 23 6 . . . 3 6 . 1 4 21 2 . . . 55 . 4 . 12 3 4 8 . . 2 Critical Hits 11 | . . . . . 3 3 . . . . . . . 1 . . . . . 1 . . . . . . . . 1 . 2 . . . Critical Kills 4 | . . . . . 1 2 . . . . . . . . . . . . . . . . . . . . . . 1 . . . . . Critical Parts Destroyed 6 | . . . . . 2 . . . . . . . . 1 . . . . . 1 . . . . . . . . . . 2 . . . Melee Attacks 207 | . . . 4 . . 5 5 . 10 2 3 . 2 11 17 . 6 26 13 11 . . 2 18 . . . 12 20 37 3 . . . Impact 114 | . . . . . . 5 4 . 10 2 3 . 2 11 17 . 4 25 12 . . . 2 17 . . . . . . . . . . Slashing 84 | . . . . . . . . . . . . . . . . . . . 1 11 . . . . . . . 12 20 37 3 . . . Piercing . | . . . . . . . . . . . . . . . . . . . . . . . . . . . . . . . . . . . Sneak Attacks 22 | . . . 4 . . 2 2 . 1 1 . . 1 . 2 . 1 . . 1 . . 1 4 . . . 1 1 . . . . . Combat Hostiles 2 | . . . . . . . . . . . . . 1 . 1 . . . . . . . . . . . . . . . . . . . Follow-up Attacks 2 | . . . . . . . . . . . . . . . . . . . . . . . . . . . . . . 2 . . . . Damage Inflicted 28608 | 24 1139 159 . 290 4854 4204 77 1202 1903 434 . . 172 634 915 . 492 477 3136 280 . . 56 4334 . 209 . 1370 332 320 1590 . . 5 Guns 7625 | 24 764 159 . 290 3723 697 . . 1461 . . . . . 274 . . 16 145 . . . . . . . . 47 25 . . . . . Cannons 1958 | . . . . . . . . . . . . . . 436 200 . . . . . . . . . . 209 . . . . 1113 . . . Explosions 14842 | . 366 . . . 1131 3264 . 1202 309 344 . . . . . . . 100 2758 . . . . 3915 . . . 976 . . 477 . . . Melee 4112 | . . . . . . 186 77 . 133 90 . . 172 198 441 . 492 361 233 280 . . 56 419 . . . 347 307 320 . . . . Ramming 71 | . 9 . . . . 57 . . . . . . . . . . . . . . . . . . . . . . . . . . . 5 Kinetic 6233 | 24 764 159 . 290 2836 172 . . 1461 . . . . . . . . 16 . . . . . . . 209 . 47 25 . 230 . . . Thermal 7186 | . . . . . 259 735 . . 173 . . . . 436 474 . . . 2237 . . . . 1512 . . . . . . 1360 . . . Explosive 5504 | . 366 . . . 174 15 . 1202 136 344 . . . . . . . . 284 . . . . 2007 . . . 976 . . . . . . Electromagnetic 5502 | . . . . . 1585 3039 . . . . . . . . . . . 100 382 . . . . 396 . . . . . . . . . . Impact 2858 | . . . . . . 186 77 . 133 90 . . 172 198 441 . 492 361 233 . . . 56 419 . . . . . . . . . . Slashing 1254 | . . . . . . . . . . . . . . . . . . . . 280 . . . . . . . 347 307 320 . . . . Piercing . | . . . . . . . . . . . . . . . . . . . . . . . . . . . . . . . . . . . Highest Corruption 14 | . . . . . . 3 . . 1 1 1 1 1 . . . . 1 1 1 . . . . . 1 1 1 3 3 14 . . 9 Average Corruption 2 | . . . . . . 2 . . 1 1 1 1 1 . . . . 1 1 1 . . . . . 1 1 1 2 3 9 . . 4 Corruption Purged 1 | . . . . . . . . . . . . . . . . . . . . 1 . . . . . . . . . . . . . . Effects 43 | . . . . . . 7 . . 2 1 . . 1 . . . . . 2 1 . . . . . . . 1 1 16 11 . . . Message Errors 9 | . . . . . . 1 . . . . . . . . . . . . 1 1 . . . . . . . . . 4 2 . . . Matter Fused 8 | . . . . . . 3 . . . . . . . . . . . . . . . . . . . . . . . 3 2 . . . Heat Flow Errors 1 | . . . . . . . . . . . . . . . . . . . . . . . . . . . . . . . 1 . . . Energy Discharges 8 | . . . . . . 1 . . . 1 . . . . . . . . . . . . . . . . . 1 . 4 1 . . . Data Loss (minor) 10 | . . . . . . 2 . . 2 . . . 1 . . . . . . . . . . . . . . . 1 4 . . . . Data Loss (major) 1 | . . . . . . . . . . . . . . . . . . . . . . . . . . . . . . . 1 . . . Targeting Errors 6 | . . . . . . . . . . . . . . . . . . . 1 . . . . . . . . . . 1 4 . . . Overload Shots 5 | . . . . . . . . . . . . . . 3 2 . . . . . . . . . . . . . . . . . . . Overflow Damage 2221 | . 37 . . . 53 137 . 42 164 50 . . 55 25 59 . 224 63 364 37 . . 16 541 . . . 114 . . 240 . . . Projectiles 241 | . . . . . . . . . . . . . . 1 . . . . . . . . . . . . . . . . 240 . . . Explosions 1127 | . 37 . . . 53 131 . 42 71 . . . . . . . . . 355 . . . . 392 . . . 46 . . . . . . Melee 853 | . . . . . . 6 . . 93 50 . . 55 24 59 . 224 63 9 37 . . 16 149 . . . 68 . . . . . . Knockbacks 19 | . . . . . . . . . 1 1 . . 2 . 3 . 3 1 2 . . . . 1 . 1 . . . . 4 . . . Impact 14 | . . . . . . . . . 1 1 . . 2 . 3 . 3 1 2 . . . . 1 . . . . . . . . . . Kinetic 5 | . . . . . . . . . . . . . . . . . . . . . . . . . . 1 . . . . 4 . . . Secondary . | . . . . . . . . . . . . . . . . . . . . . . . . . . . . . . . . . . . Self-Inflicted Damage 858 | . 32 . . . 127 195 . 28 109 33 . . . . . . . 88 64 . . . . . . . . 182 . . . . . . Shots 21 | . 1 . . . 2 9 . 1 3 1 . . . . . . . 1 1 . . . . . . . . 2 . . . . . . Rammed 10 | . . . . . 1 4 . . . . . . . . . . . . . . . . . . . . . . . . . . . 5 Targets Rammed 14 | . 2 . . . 1 6 . . . . . . . . . . . . . . . . . . . . . . . . . . . 5 Kicked . | . . . . . . . . . . . . . . . . . . . . . . . . . . . . . . . . . . . Crushed 4 | . 2 . . . . 2 . . . . . . . . . . . . . . . . . . . . . . . . . . . . Highest Temperature 224 | . 3 . . . 123 7 . . . . 1 . . 92 224 . . . 116 . . . . 26 . 12 . 13 50 15 222 . . . Average Temperature 42 | . 2 . . . 33 4 . . . . 1 . . 39 99 . . . 44 . . . . 8 . 6 . 6 29 12 91 . . . Received Heat Transfer 2614 | . 213 . . 102 894 207 . . 51 9 30 . . 32 258 96 . 12 234 36 24 . 27 119 . 9 . 48 30 30 . . 18 135 Siege Activations . | . . . . . . . . . . . . . . . . . . . . . . . . . . . . . . . . . . . Robots Corrupted 10 | . . . . . 4 6 . . . . . . . . . . . . . . . . . . . . . . . . . . . . Combat Hostiles 5 | . . . . . 3 2 . . . . . . . . . . . . . . . . . . . . . . . . . . . . Parts Fried 42 | . . . . . 10 11 . . 4 1 . . . . 3 . 4 2 3 . . . 1 2 . . . 1 . . . . . . Impact Corruptions 30 | . . . . . . 1 . . 3 2 . . 3 2 2 . 6 5 2 . . . 1 3 . . . . . . . . . . Robots Melted . | . . . . . . . . . . . . . . . . . . . . . . . . . . . . . . . . . . . Combat Hostiles . | . . . . . . . . . . . . . . . . . . . . . . . . . . . . . . . . . . . Parts Melted 2 | . . . . . . . . . . . . . . . 1 . . . 1 . . . . . . . . . . . . . . . Heat Transferred 5613 | . . . . . 237 900 . . 100 . . . . 544 642 . . . 1350 . . . . 850 . . . . . . 990 . . . Parts Sabotaged 3 | . . . . . . . . . . . . . . . . . . . . . . . . . . . . . . 3 . . . . Parts Stolen . | . . . . . . . . . . . . . . . . . . . . . . . . . . . . . . . . . . . Parts Stripped . | . . . . . . . . . . . . . . . . . . . . . . . . . . . . . . . . . . . Power Chain Reactions 25 | . . . . . 5 18 . . . . . . . . . . . . 1 . . . . 1 . . . . . . . . . . Missiles Intercepted . | . . . . . . . . . . . . . . . . . . . . . . . . . . . . . . . . . . . Alert | -11 -10 -10 -10 -9 -8 -8 -7 -7 -7 -7 -7 -7 -6 -6 -6 -6 -6 -6 -5 -5 -5 -5 -4 -4 -4 -4 -4 -3 -3 -3 -3 -2 -2 -2 ------- Run | Scr Mat Min Exi Min Mat Sto Fac Was Fac Low Low Dat Pro Fac Ext Cet Arc Hub Fac Upp Upp War Pro Fac Upp Upp Zhi Pro Res Arm Lab Res Gar Res Peak Influence 2040 | 5 374 205 . 30 1551 1718 734 256 587 . . . . 93 681 311 162 506 1335 . . . . 2040 . . . . 294 403 . 51 43 537 Initial 730 | . 3 75 . . 11 655 730 175 179 . . . . 70 37 296 112 56 247 . . . . . . . . . 239 154 . . 38 24 Average 494 | 2 173 152 . 5 775 941 617 212 365 . . . . 56 347 297 135 159 775 . . . . 829 . . . . 70 222 . 22 38 287 Maximum Alert Level 5 | . 1 1 . . 4 5 3 1 2 . . . . . 2 1 . 2 4 . . . . 5 . . . . 1 2 . . . 2 Low Security (%) 32 | 100 78 60 . 100 5 . . 37 6 . . . . 100 24 . 100 96 5 . . . . 14 . . . . 84 44 . 100 100 43 Level 1 19 | . 21 39 . . 1 . . 62 61 . . . . . 43 100 . . 22 . . . . 10 . . . . 15 55 . . . 10 Level 2 18 | . . . . . 36 23 42 . 31 . . . . . 32 . . 3 3 . . . . 32 . . . . . . . . . 45 Level 3 17 | . . . . . 33 41 57 . . . . . . . . . . . 40 . . . . 8 . . . . . . . . . . Level 4 11 | . . . . . 22 32 . . . . . . . . . . . . 28 . . . . 18 . . . . . . . . . . Level 5 1 | . . . . . . 2 . . . . . . . . . . . . . . . . . 14 . . . . . . . . . . High Security . | . . . . . . . . . . . . . . . . . . . . . . . . . . . . . . . . . . . Max Security . | . . . . . . . . . . . . . . . . . . . . . . . . . . . . . . . . . . . Squads Dispatched 63 | . 4 . . . 7 7 1 . 5 . 1 . . 2 1 . . . 11 . . . . 11 . . . . 4 2 . 1 . 6 Investigation 17 | . . . . . 3 3 . . 1 . 1 . . . . . . . 3 . . . . 1 . . . . . 1 . 1 . 3 Extermination 12 | . . . . . . . 1 . 1 . . . . 1 . . . . 3 . . . . 1 . . . . 3 1 . . . 1 Reinforcement 16 | . 4 . . . 2 2 . . 2 . . . . 1 . . . . . . . . . 4 . . . . 1 . . . . . Assault 10 | . . . . . 1 1 . . . . . . . . 1 . . . 5 . . . . 2 . . . . . . . . . . Garrison 6 | . . . . . 1 1 . . 1 . . . . . . . . . . . . . . 3 . . . . . . . . . . Intercept 2 | . . . . . . . . . . . . . . . . . . . . . . . . . . . . . . . . . . 2 Construction Impeded 2 | . . . . . . . . . 1 . . . . . . . . . . . . . . 1 . . . . . . . . . . Haulers Reinforced 2 | . . . . . . . . . . . . . . 1 . . . . . . . . . 1 . . . . . . . . . . Stealth | -11 -10 -10 -10 -9 -8 -8 -7 -7 -7 -7 -7 -7 -6 -6 -6 -6 -6 -6 -5 -5 -5 -5 -4 -4 -4 -4 -4 -3 -3 -3 -3 -2 -2 -2 --------- Run | Scr Mat Min Exi Min Mat Sto Fac Was Fac Low Low Dat Pro Fac Ext Cet Arc Hub Fac Upp Upp War Pro Fac Upp Upp Zhi Pro Res Arm Lab Res Gar Res Distress Signals 34 | . 4 . . . 5 5 . . . . . . . . . 2 . . . . . . . 3 . . . 6 2 4 . . . 3 Communications Jammed . | . . . . . . . . . . . . . . . . . . . . . . . . . . . . . . . . . . . Distress Signals . | . . . . . . . . . . . . . . . . . . . . . . . . . . . . . . . . . . . Times Spotted 589 | . 25 6 . 5 74 43 1 6 39 8 13 . 3 5 40 12 10 9 70 5 4 . 4 58 . 3 . 26 37 29 1 6 4 43 Peak Tracking Total 19 | . 5 3 . 3 6 6 2 6 8 4 7 . 3 2 7 12 8 4 17 5 3 . 4 13 . 2 . 11 10 10 1 6 4 19 Tactical Retreats 69 | . . . . . 10 3 . . 4 1 2 . . . 2 . 1 3 17 2 1 . . 4 . . . 5 6 4 . . . 4 Traps | -11 -10 -10 -10 -9 -8 -8 -7 -7 -7 -7 -7 -7 -6 -6 -6 -6 -6 -6 -5 -5 -5 -5 -4 -4 -4 -4 -4 -3 -3 -3 -3 -2 -2 -2 ------- Run | Scr Mat Min Exi Min Mat Sto Fac Was Fac Low Low Dat Pro Fac Ext Cet Arc Hub Fac Upp Upp War Pro Fac Upp Upp Zhi Pro Res Arm Lab Res Gar Res Traps Triggered 17 | . . . . . 1 4 1 . 3 . . . . . 3 . . . 1 . . . . . . . . 1 . . . . 1 2 Indirectly 5 | . . . . . 1 4 . . . . . . . . . . . . . . . . . . . . . . . . . . . . Trap Hack Attempts 50 | . . . . . . . 1 . 39 . . . . . . . . . 10 . . . . . . . . . . . . . . . Triggered 1 | . . . . . . . . . 1 . . . . . . . . . . . . . . . . . . . . . . . . . Disarmed 1 | . . . . . . . . . 1 . . . . . . . . . . . . . . . . . . . . . . . . . Reprogrammed 51 | . . . . . . . 2 . 16 . . . . . . . . 3 12 . . . . . . . . . 18 . . . . . Reused 10 | . . . . . . . . . 5 . . . . . 1 . . 1 . . . . . . . . . 1 2 . . . . . Traps Extracted . | . . . . . . . . . . . . . . . . . . . . . . . . . . . . . . . . . . . Installed 12 | . . . . . . . . . . 8 . . . . 1 . . . . 1 . . . . . . . 2 . . . . . . Triggered 21 | . . . . . . . . . 6 . . . . . 2 . . 1 . . . 9 . . . . . 1 2 . . . . . Machines | -11 -10 -10 -10 -9 -8 -8 -7 -7 -7 -7 -7 -7 -6 -6 -6 -6 -6 -6 -5 -5 -5 -5 -4 -4 -4 -4 -4 -3 -3 -3 -3 -2 -2 -2 ---------- Run | Scr Mat Min Exi Min Mat Sto Fac Was Fac Low Low Dat Pro Fac Ext Cet Arc Hub Fac Upp Upp War Pro Fac Upp Upp Zhi Pro Res Arm Lab Res Gar Res Machines Disabled 108 | . 2 . . . 4 10 . . 4 . . . . . 7 . 1 14 17 . . . . 38 . . . . . 5 6 . . . Max in Single Turn 14 | . 1 . . . 1 2 . . 2 . . . . . 1 . 1 14 4 . . . . 12 . . . . . 1 1 . . . Garrison Access 4 | . . . . . 1 1 . . 1 . . . . . . . . . . . . . . 1 . . . . . . . . . . Network Hub 1 | . . . . . . . . . . . . . . . . . . 1 . . . . . . . . . . . . . . . . Energy Cycler 3 | . . . . . . . . . . . . . . . 3 . . . . . . . . . . . . . . . . . . . Machines Sabotaged 1 | . . . . . . . . . . . . . . . . . . . 1 . . . . . . . . . . . . . . . Garrisons Compromised 1 | . . . . . . . . . . . . . . 1 . . . . . . . . . . . . . . . . . . . . Overloaded Fab Kills . | . . . . . . . . . . . . . . . . . . . . . . . . . . . . . . . . . . . Fab Network Shutdowns 3 | . . . . . . . . . . . . . . . . . . . 1 . . . . 1 . . . . . . . . . 1 Hacking | -11 -10 -10 -10 -9 -8 -8 -7 -7 -7 -7 -7 -7 -6 -6 -6 -6 -6 -6 -5 -5 -5 -5 -4 -4 -4 -4 -4 -3 -3 -3 -3 -2 -2 -2 --------- Run | Scr Mat Min Exi Min Mat Sto Fac Was Fac Low Low Dat Pro Fac Ext Cet Arc Hub Fac Upp Upp War Pro Fac Upp Upp Zhi Pro Res Arm Lab Res Gar Res Machines Accessed 131 | . 2 . 2 . 10 7 4 . 18 1 1 4 . 1 6 1 1 2 18 1 . 5 . 14 . . 4 . 14 6 . 2 . 7 Terminals 67 | . 2 . . . 7 4 3 . 8 1 1 . . . 6 1 . 2 11 . . . . 7 . . . . 7 3 . 1 . 3 Fabricators 12 | . . . . . . . . . 3 . . . . . . . . . 2 . . . . 2 . . . . . 3 . . . 2 Repair Stations 10 | . . . . . . 2 . . 3 . . . . . . . . . 1 . . . . 2 . . . . 2 . . . . . Recycling Units 8 | . . . . . 1 . . . 2 . . . . 1 . . . . 1 . . . . 1 . . . . 1 . . . . 1 Scanalyzers 7 | . . . . . 1 . 1 . . . . . . . . . . . 2 . . . . 1 . . . . 2 . . . . . Garrison Access 10 | . . . . . 1 1 . . 2 . . . . . . . . . 1 . . . . 1 . . . . 2 . . 1 . 1 Total Hacks 677 | . 5 . 3 . 33 21 17 . 60 1 11 23 . 1 34 1 25 11 139 1 . 8 . 118 . . 17 . 62 45 . 6 . 35 Successful 585 | . 2 . 3 . 21 12 16 . 46 1 11 23 . 1 23 1 25 7 128 1 . 8 . 113 . . 17 . 61 41 . 1 . 23 Failed 89 | . 3 . . . 12 9 1 . 14 . . . . . 10 . . 4 10 . . . . 4 . . . . 1 4 . 5 . 12 Catastrophic 2 | . . . . . 1 1 . . . . . . . . . . . . . . . . . . . . . . . . . . . . Database Lockouts 3 | . . . . . . . . . . . . . . . 1 . . . 1 . . . . 1 . . . . . . . . . . Manual 229 | . 1 . 1 . 19 2 12 . 13 . . . . . 25 2 . 3 57 . . 1 . 48 . . . . 19 10 . . . 16 Terminals 399 | . 5 . . . 20 13 13 . 30 1 11 . . . 34 1 . 11 100 . . . . 70 . . . . 45 16 . 4 . 25 Fabricators 72 | . . . . . . . . . 13 . . . . . . . . . 11 . . . . 13 . . . . . 29 . . . 6 Repair Stations 45 | . . . . . . 5 . . 9 . . . . . . . . . 12 . . . . 11 . . . . 8 . . . . . Recycling Units 17 | . . . . . 3 . . . 6 . . . . 1 . . . . 1 . . . . 2 . . . . 1 . . . . 3 Scanalyzers 41 | . . . . . 8 . 4 . . . . . . . . . . . 11 . . . . 14 . . . . 4 . . . . . Garrison Access 26 | . . . . . 2 3 . . 2 . . . . . . . . . 4 . . . . 8 . . . . 4 . . 2 . 1 Terminal Hacks 328 | . 2 . 3 . 7 8 12 . 21 1 11 23 . . 15 1 25 5 63 1 . 8 . 45 . . 17 . 38 12 . . . 10 Record 63 | . . . 2 . . . . . . 1 11 11 . . . . 25 . 1 . . 6 . 1 . . 5 . . . . . . . Part Schematic 29 | . . . . . . . 1 . . . . 3 . . 2 . . . 11 . . . . 6 . . 4 . 1 1 . . . . Robot Schematic 18 | . . . . . . 1 1 . 3 . . 6 . . . . . . 3 . . . . . . . . . 2 2 . . . . Robot Analysis 21 | . . . . . . . 3 . 1 . . . . . 5 . . . 2 . . . . 2 . . 4 . 3 1 . . . . Prototype ID Bank 23 | . . . . . 1 . . . 3 . . 3 . . 1 . . 1 4 . . . . 2 . . 4 . 2 1 . . . 1 Open Door 6 | . . . . . . 2 . . . . . . . . . 1 . . . 1 . 2 . . . . . . . . . . . . Level Access Points 6 | . . . . . . . . . . . . . . . 1 . . 1 . . . . . 2 . . . . 1 . . . . 1 Branch Access Points 8 | . . . . . 1 . 1 . 1 . . . . . 1 . . . 1 . . . . 1 . . . . 1 . . . . 1 Emergency Access Points 3 | . . . . . . . . . . . . . . . . . . . . . . . . 1 . . . . 2 . . . . . Machine Index 11 | . . . . . . . 1 . 1 . . . . . 1 . . 1 2 . . . . 2 . . . . 1 1 . . . 1 Terminal Index 4 | . 1 . . . . . . . . . . . . . 1 . . . . . . . . 1 . . . . . 1 . . . . Recycling Unit Index 1 | . . . . . 1 . . . . . . . . . . . . . . . . . . . . . . . . . . . . . Alert Level 27 | . . . . . 1 1 1 . 3 . . . . . 1 . . . 8 . . . . 9 . . . . 1 1 . . . 1 Unreport Threat 19 | . . . . . 1 2 2 . 1 . . . . . . . . . 4 . . . . 5 . . . . 2 . . . . 2 Locate Traps 6 | . 1 . . . . 1 . . 1 . . . . . . . . . 2 . . . . . . . . . 1 . . . . . Reprogram Traps 12 | . . . . . . . 1 . . . . . . . . . . 2 4 . . . . . . . . . 5 . . . . . Dispatch Records 11 | . . . . . . . . . . . . . . . . . . . 4 . . . . 4 . . . . 2 1 . . . . Maintenance Status 1 | . . . . . . . . . 1 . . . . . . . . . . . . . . . . . . . . . . . . . Security Status 1 | . . . . . . . . . . . . . . . . . . . 1 . . . . . . . . . . . . . . . Surveillance Status 1 | . . . . . . . . . . . . . . . . . . . . . . . . . . . . . 1 . . . . . Investigation Status 1 | . . . . . . . . . . . . . . . . . . . . . . . . . . . . . . 1 . . . . Extermination Status 1 | . . . . . . . . . . . . . . . . . . . . . . . . . . . . . 1 . . . . . Reinforcement Status 2 | . . . . . . . . . . . . . . . . . . . . . . . . 1 . . . . 1 . . . . . Assault Status 1 | . . . . . . . . . . . . . . . . . . . . . . . . 1 . . . . . . . . . . Recall Investigation 1 | . . . . . . . . . . . . . . . . . . . . . . . . . . . . . 1 . . . . . Recall Extermination 6 | . . . . . . . 1 . . . . . . . . . . . 3 . . . . . . . . . 2 . . . . . Recall Reinforcements 4 | . . . . . . . . . 1 . . . . . . . . . . . . . . 2 . . . . 1 . . . . . Recall Assault 1 | . . . . . . . . . . . . . . . . . . . . . . . . 1 . . . . . . . . . . Hauler Manifests 8 | . . . . . 1 1 . . 1 . . . . . 1 . . . 3 . . . . . . . . . 1 . . . . . Registered Components 5 | . . . . . . . . . . . . . . . . . . . 1 . . . . 1 . . . . 1 1 . . . 1 Registered Prototypes 5 | . . . . . . . . . 1 . . . . . . . . . 1 . . . . 1 . . . . 1 . . . . 1 Zone Layout 21 | . . . . . 1 . . . 3 . . . . . 1 . . . 8 . . . . 2 . . . . 4 1 . . . 1 EX-Prototype ID Bank 1 | . . . 1 . . . . . . . . . . . . . . . . . . . . . . . . . . . . . . . Fabricator Hacks 50 | . . . . . . . . . 8 . . . . . . . . . 8 . . . . 8 . . . . . 23 . . . 3 Network Status 7 | . . . . . . . . . . . . . . . . . . . 2 . . . . 1 . . . . . 4 . . . . Load Schematic 17 | . . . . . . . . . 4 . . . . . . . . . 1 . . . . 3 . . . . . 8 . . . 1 Build 26 | . . . . . . . . . 4 . . . . . . . . . 5 . . . . 4 . . . . . 11 . . . 2 Repair Station Hacks 40 | . . . . . . 3 . . 7 . . . . . . . . . 12 . . . . 11 . . . . 7 . . . . . Scan Component 18 | . . . . . . 2 . . 3 . . . . . . . . . 6 . . . . 5 . . . . 2 . . . . . Repair 17 | . . . . . . 1 . . 3 . . . . . . . . . 6 . . . . 5 . . . . 2 . . . . . Refit 5 | . . . . . . . . . 1 . . . . . . . . . . . . . . 1 . . . . 3 . . . . . Recycling Unit Hacks 15 | . . . . . 1 . . . 6 . . . . 1 . . . . 1 . . . . 2 . . . . 1 . . . . 3 Recycle Component 2 | . . . . . . . . . 2 . . . . . . . . . . . . . . . . . . . . . . . . . Process 2 | . . . . . . . . . 1 . . . . . . . . . . . . . . . . . . . . . . . . 1 Report Inventory 6 | . . . . . . . . . 1 . . . . 1 . . . . 1 . . . . 1 . . . . 1 . . . . 1 Retrieve Matter 2 | . . . . . . . . . 1 . . . . . . . . . . . . . . . . . . . . . . . . 1 Retrieve Components 3 | . . . . . 1 . . . 1 . . . . . . . . . . . . . . 1 . . . . . . . . . . Scanalyzer 38 | . . . . . 7 . 4 . . . . . . . . . . . 9 . . . . 14 . . . . 4 . . . . . Insert Component 18 | . . . . . 3 . 2 . . . . . . . . . . . 4 . . . . 6 . . . . 3 . . . . . Analyze 20 | . . . . . 4 . 2 . . . . . . . . . . . 5 . . . . 8 . . . . 1 . . . . . Garrison Access Hacks 3 | . . . . . . . . . 1 . . . . . . . . . . . . . . 1 . . . . . . . 1 . . Unlock Access 1 | . . . . . . . . . . . . . . . . . . . . . . . . . . . . . . . . 1 . . Seal Access 2 | . . . . . . . . . 1 . . . . . . . . . . . . . . 1 . . . . . . . . . . Unauthorized Hacks 111 | . . . . . 6 1 . . 3 . . . . . 8 . . 2 35 . . . . 32 . . . . 11 6 . . . 7 Terminals 76 | . . . . . 3 . . . 2 . . . . . 8 . . 2 27 . . . . 21 . . . . 7 1 . . . 5 Track 11 | . . . . . . . . . . . . . . . 1 . . . 4 . . . . 4 . . . . 1 . . . . 1 Assimilate 8 | . . . . . . . . . 2 . . . . . 1 . . . 2 . . . . . . . . . 2 . . . . 1 Botnet 21 | . . . . . 2 . . . . . . . . . 3 . . 1 5 . . . . 4 . . . . 3 1 . . . 2 Detonate 15 | . . . . . . . . . . . . . . . 1 . . . 8 . . . . 6 . . . . . . . . . . Disrupt 12 | . . . . . . . . . . . . . . . 1 . . 1 4 . . . . 5 . . . . . . . . . 1 Operators 7 | . . . . . 1 . . . . . . . . . 1 . . . 2 . . . . 2 . . . . 1 . . . . . Sabotage 2 | . . . . . . . . . . . . . . . . . . . 2 . . . . . . . . . . . . . . . Fabricators 14 | . . . . . . . . . . . . . . . . . . . 3 . . . . 5 . . . . . 5 . . . 1 Report 1 | . . . . . . . . . . . . . . . . . . . . . . . . 1 . . . . . . . . . . Prioritize 6 | . . . . . . . . . . . . . . . . . . . 1 . . . . 2 . . . . . 3 . . . . Siphon 5 | . . . . . . . . . . . . . . . . . . . 1 . . . . 2 . . . . . 2 . . . . Haulers 1 | . . . . . . . . . . . . . . . . . . . 1 . . . . . . . . . . . . . . . Overload 1 | . . . . . . . . . . . . . . . . . . . . . . . . . . . . . . . . . . 1 Repair Stations . | . . . . . . . . . . . . . . . . . . . . . . . . . . . . . . . . . . . Recycling Units 1 | . . . . . 1 . . . . . . . . . . . . . . . . . . . . . . . . . . . . . Reject 1 | . . . . . 1 . . . . . . . . . . . . . . . . . . . . . . . . . . . . . Scanalyzers 2 | . . . . . 1 . . . . . . . . . . . . . 1 . . . . . . . . . . . . . . . Extract 2 | . . . . . 1 . . . . . . . . . . . . . 1 . . . . . . . . . . . . . . . Garrison Access 18 | . . . . . 1 1 . . 1 . . . . . . . . . 4 . . . . 6 . . . . 4 . . . . 1 Broadcast 4 | . . . . . . . . . . . . . . . . . . . 1 . . . . 1 . . . . 2 . . . . . Decoy 1 | . . . . . . . . . . . . . . . . . . . 1 . . . . . . . . . . . . . . . Reprogram 9 | . . . . . . . . . 1 . . . . . . . . . 1 . . . . 4 . . . . 2 . . . . 1 Intercept 2 | . . . . . . . . . . . . . . . . . . . 1 . . . . 1 . . . . . . . . . . Jam 2 | . . . . . 1 1 . . . . . . . . . . . . . . . . . . . . . . . . . . . . Data Cores Recovered 1 | . . . . . . . . . . . . . . . . . . . . . . . . 1 . . . . . . . . . . Used . | . . . . . . . . . . . . . . . . . . . . . . . . . . . . . . . . . . . Hacking Detections 77 | . 2 . . . 9 7 4 . 13 . 1 . . . 4 . . 2 10 . . . . 9 . . . . 7 5 . 2 . 2 Full Trace Events 5 | . . . . . . 1 . . 1 . 1 . . . . . . . . . . . . . . . . . . 1 . . . 1 Feedback Events 2 | . . . . . . . . . 1 . . . . . . . . . . . . . . . . . . . . . . . . 1 Corruption 1 | . . . . . . . . . 1 . . . . . . . . . . . . . . . . . . . . . . . . . Hackware Fried 1 | . . . . . . . . . . . . . . . . . . . . . . . . . . . . . . . . . . 1 Feedback Blocked . | . . . . . . . . . . . . . . . . . . . . . . . . . . . . . . . . . . . Robot Schematics Acquired 18 | . . . . . . 1 1 . 3 . . 6 . . . . . . 3 . . . . . . . . . 2 2 . . . . Robots Built 17 | . . . . . . . . . 4 . . . . . . . . . . . . . . 3 . . . . . 10 . . . . Matter 2879 | . . . . . . . . . 690 . . . . . . . . . . . . . . 377 . . . . . 1812 . . . . Time 527 | . . . . . . . . . 183 . . . . . . . . . . . . . . 96 . . . . . 248 . . . . Total Robot Build Rating 99 | . . . . . . . . . 14 . . . . . . . . . . . . . . 13 . . . . . 72 . . . . Part Schematics Acquired 52 | . . . . . 5 . 3 . . . . 3 . . 2 . . . 20 . . . . 12 . . 4 . 2 1 . . . . Parts Built 13 | . . . . . . . . . . . . . . . . . . . 5 . . . . 1 . . . . . 5 . . . 2 Matter 2485 | . . . . . . . . . . . . . . . . . . . 820 . . . . 159 . . . . . 1082 . . . 424 Time 615 | . . . . . . . . . . . . . . . . . . . 290 . . . . 53 . . . . . 166 . . . 106 Total Part Build Rating 64 | . . . . . . . . . . . . . . . . . . . 15 . . . . 6 . . . . . 31 . . . 12 Parts Repaired 15 | . . . . . . 1 . . 3 . . . . . . . . . 6 . . . . 4 . . . . 1 . . . . . Time 691 | . . . . . . 50 . . 68 . . . . . . . . . 354 . . . . 151 . . . . 68 . . . . . Parts Recycled 2 | . . . . . . . . . 2 . . . . . . . . . . . . . . . . . . . . . . . . . Recycled Matter 137 | . . . . . . . . . 125 . . . . . . . . . . . . . . . . . . . . . . . . 12 Retrieved Matter 137 | . . . . . . . . . 125 . . . . . . . . . . . . . . . . . . . . . . . . 12 Retrieved Components 11 | . . . . . 10 . . . . . . . . . . . . . . . . . . 1 . . . . . . . . . . Parts Scanalyzed 16 | . . . . . 3 . 2 . . . . . . . . . . . 4 . . . . 6 . . . . 1 . . . . . Part Schematics Acquired 16 | . . . . . 3 . 2 . . . . . . . . . . . 4 . . . . 6 . . . . 1 . . . . . Parts Damaged 1 | . . . . . . . . . . . . . . . . . . . . . . . . 1 . . . . . . . . . . Bothacking | -11 -10 -10 -10 -9 -8 -8 -7 -7 -7 -7 -7 -7 -6 -6 -6 -6 -6 -6 -5 -5 -5 -5 -4 -4 -4 -4 -4 -3 -3 -3 -3 -2 -2 -2 ------------ Run | Scr Mat Min Exi Min Mat Sto Fac Was Fac Low Low Dat Pro Fac Ext Cet Arc Hub Fac Upp Upp War Pro Fac Upp Upp Zhi Pro Res Arm Lab Res Gar Res Used RIF Installer 1 | . . . . . . . . . . . . . . . . . . . . . . . . . . . . . . . . . 1 . Robots Hacked 7 | . . . 4 . . . 1 . . . . . . . . . 1 1 . . . . . . . . . . . . . . . . Non-combat 4 | . . . 3 . . . 1 . . . . . . . . . . . . . . . . . . . . . . . . . . . Combat 3 | . . . 1 . . . . . . . . . . . . . 1 1 . . . . . . . . . . . . . . . . Robot Hacks Applied 7 | . . . 4 . . . 1 . . . . . . . . . 1 1 . . . . . . . . . . . . . . . . parse_system 6 | . . . 4 . . . . . . . . . . . . . 1 1 . . . . . . . . . . . . . . . . no_distress 1 | . . . . . . . 1 . . . . . . . . . . . . . . . . . . . . . . . . . . . Relay Couplers Released . | . . . . . . . . . . . . . . . . . . . . . . . . . . . . . . . . . . . Robots Rewired 32 | . . . . . . . . . . . . . . 2 20 . . . . . . 1 . 1 . . . . . 8 . . . . Allies Hacked 2 | . . . . . . . . . 1 . . . . . . . . . . . . . . . . . . . . 1 . . . . Hacks Repelled . | . . . . . . . . . . . . . . . . . . . . . . . . . . . . . . . . . . . Allies | -11 -10 -10 -10 -9 -8 -8 -7 -7 -7 -7 -7 -7 -6 -6 -6 -6 -6 -6 -5 -5 -5 -5 -4 -4 -4 -4 -4 -3 -3 -3 -3 -2 -2 -2 -------- Run | Scr Mat Min Exi Min Mat Sto Fac Was Fac Low Low Dat Pro Fac Ext Cet Arc Hub Fac Upp Upp War Pro Fac Upp Upp Zhi Pro Res Arm Lab Res Gar Res Total Allies 90 | . . . . . . 10 . . 6 . . . 1 14 25 . . . 2 . . 1 . 10 . . . . 2 18 . . . 1 Largest Group 14 | . . . . . . 10 . . 2 . . . 1 8 14 3 . . 1 . . 1 . 5 . . . . 1 5 . . . 1 Highest-Rated Group 480 | . . . . . . 173 . . 64 . . . 94 163 480 73 . . 26 . . 41 . 259 . . . . 44 264 . . . 26 Highest-Rated Ally 156 | . . . . . . 29 . . 32 . . . 94 41 156 37 . . 26 . . 41 . 56 . . . . 44 69 . . . 26 Total Orders 10 | . . . . . . . . . 1 . . . . . . . . . 2 . . . . . . . . . 4 3 . . . . STAY 4 | . . . . . . . . . . . . . . . . . . . . . . . . . . . . . 2 2 . . . . FOLLOW 2 | . . . . . . . . . . . . . . . . . . . . . . . . . . . . . 2 . . . . . AID 2 | . . . . . . . . . 1 . . . . . . . . . . . . . . . . . . . . 1 . . . . EXPLORE 2 | . . . . . . . . . . . . . . . . . . . 2 . . . . . . . . . . . . . . . Ally Attacks 519 | . . . . . . 49 . . 8 . . . 13 8 213 1 . . . . . 5 . 111 . . . . . 111 . . . . Total Damage 14603 | . . . . . . 679 . . 339 . . . 467 264 5142 17 . . . . . 196 . 3461 . . . . . 4038 . . . . Kills 110 | . . . . . . 11 . . 3 . . . 5 2 38 . . . . . . 3 . 33 . . . . . 15 . . . . Allies Corrupted 3 | . . . . . . . . . 1 . . . . . 1 . . . . . . . . . . . . . . 1 . . . . Allies Melted 3 | . . . . . . . . . . . . . . . 1 . 1 . . . . . . . . . . . . 1 . . . . Intel | -11 -10 -10 -10 -9 -8 -8 -7 -7 -7 -7 -7 -7 -6 -6 -6 -6 -6 -6 -5 -5 -5 -5 -4 -4 -4 -4 -4 -3 -3 -3 -3 -2 -2 -2 ------- Run | Scr Mat Min Exi Min Mat Sto Fac Was Fac Low Low Dat Pro Fac Ext Cet Arc Hub Fac Upp Upp War Pro Fac Upp Upp Zhi Pro Res Arm Lab Res Gar Res Robot Analysis Total 21 | . . . . . . . 3 . 1 . . . . . 5 . . . 2 . . . . 2 . . 4 . 3 1 . . . . Derelict Logs Recovered 13 | . . 1 . 1 . . . . . 2 1 . 1 . . . . . . 3 1 . 2 . . 1 . . . . . . . . Drone Launches 2 | . . . . . . . . . . . . . . . . . . . 2 . . . . . . . . . . . . . . . Drone Recoveries . | . . . . . . . . . . . . . . . . . . . . . . . . . . . . . . . . . . . Exploration | -11 -10 -10 -10 -9 -8 -8 -7 -7 -7 -7 -7 -7 -6 -6 -6 -6 -6 -6 -5 -5 -5 -5 -4 -4 -4 -4 -4 -3 -3 -3 -3 -2 -2 -2 ------------- Run | Scr Mat Min Exi Min Mat Sto Fac Was Fac Low Low Dat Pro Fac Ext Cet Arc Hub Fac Upp Upp War Pro Fac Upp Upp Zhi Pro Res Arm Lab Res Gar Res Turns Passed 15435 | 55 785 293 425 387 2042 1213 323 88 994 196 84 23 217 264 848 34 64 212 1909 222 58 293 177 820 73 95 46 251 1021 764 225 93 196 645 Spaces Moved 20295 | 34 367 157 258 187 851 605 534 146 1984 598 262 78 425 500 1226 91 100 311 2387 478 214 654 594 1628 266 294 128 752 1626 1108 299 274 128 751 Core 63 | 14 . . . . . . . . . . . . . . . . . . 2 . . . . . . . . . . . . . . 47 Treads 2511 | 20 367 157 258 187 851 605 66 . . . . . . . . . . . . . . . . . . . . . . . . . . . Legs . | . . . . . . . . . . . . . . . . . . . . . . . . . . . . . . . . . . . Wheels . | . . . . . . . . . . . . . . . . . . . . . . . . . . . . . . . . . . . Hover 3 | . . . . . . . . . . . . . . . . . . 2 . . . . . . . . . . . . . . . 1 Flight 17718 | . . . . . . . 468 146 1984 598 262 78 425 500 1226 91 100 309 2385 478 214 654 594 1628 266 294 128 752 1626 1108 299 274 128 703 Fastest Speed 20 | 50 160 160 160 180 160 160 32 32 29 29 29 29 29 29 29 30 40 35 26 26 26 26 26 20 26 26 26 26 23 23 20 29 29 25 Average Speed 45 | 114 160 162 160 180 165 161 47 32 30 29 29 29 29 29 30 34 40 43 31 26 26 27 28 26 26 26 26 26 26 23 25 29 29 30 Slowest Speed 200 | 160 160 180 180 200 200 163 160 32 102 29 29 29 29 99 105 40 40 105 105 26 26 99 29 32 26 26 26 26 29 99 29 29 29 120 Overloaded Moves 47 | . . . . . . . . . . . . . . . . . . . . . . . 1 8 . . . . 11 . 9 . . 18 Propulsion Burnouts . | . . . . . . . . . . . . . . . . . . . . . . . . . . . . . . . . . . . Robots Hopped 76 | . . . . . . . 1 . . . . . . 1 5 2 . 1 41 . . . . 5 . . . 1 8 . . 1 . 10 Cave-ins Triggered . | . . . . . . . . . . . . . . . . . . . . . . . . . . . . . . . . . . . Teleports 2 | . . . . . . . . . . . . . . . . . . . . . . . . . . . . . . 1 . . . 1 Exploration Rate (%) 53 | 3 54 32 64 40 67 85 13 71 48 72 57 69 75 9 88 58 67 20 41 67 55 92 78 37 49 52 60 81 49 35 99 6 43 21 Regions Visited 34 Branch Regions 22 Pre-discovered Areas 6 | . . . 1 . . . . . . . . 1 . . . . . . . 1 . . . . . . 3 . . . . . . . Known Exits Taken 11 | . . . . . 1 . . . 1 . . . . 1 1 . . 1 1 . . . . 1 . . . 1 1 . 1 1 . . Unknown Exits Taken 20 | 1 1 1 1 1 . 1 . . . 1 1 1 1 . . 1 1 . . 1 1 1 1 . 1 1 1 . . 1 . . . . Scrap Searched 19 | . . 1 . . . . . . . 3 1 . . . . . . . . 5 2 . 4 . 1 1 . 1 . . . . . . Spaces Dug 177 | . . . . . . . 3 . 18 1 3 . . 1 3 . . 9 4 2 . . 1 6 . . . 80 15 22 1 1 . 7 Terrain Destroyed 1333 | . 19 . . . 63 101 3 87 129 23 3 . . 3 3 . . 192 215 2 . . 1 226 . 1 . 201 15 22 13 1 . 10 Melee 80 | . . . . . . . 3 . 9 1 3 . . . 3 . . 9 4 2 . . 1 5 . . . 4 13 22 1 . . . Projectile 27 | . . . . . . . . . 9 . . . . 3 . . . . . . . . . 1 . 1 . . 2 . . 1 . 10 AOE 1226 | . 19 . . . 63 101 . 87 111 22 . . . . . . . 183 211 . . . . 220 . . . 197 . . 12 . . . Terrain Rammed . | . . . . . . . . . . . . . . . . . . . . . . . . . . . . . . . . . . . Walls Destroyed . | . . . . . . . . . . . . . . . . . . . . . . . . . . . . . . . . . . . Machines Disabled . | . . . . . . . . . . . . . . . . . . . . . . . . . . . . . . . . . . . Actions | -11 -10 -10 -10 -9 -8 -8 -7 -7 -7 -7 -7 -7 -6 -6 -6 -6 -6 -6 -5 -5 -5 -5 -4 -4 -4 -4 -4 -3 -3 -3 -3 -2 -2 -2 --------- Run | Scr Mat Min Exi Min Mat Sto Fac Was Fac Low Low Dat Pro Fac Ext Cet Arc Hub Fac Upp Upp War Pro Fac Upp Upp Zhi Pro Res Arm Lab Res Gar Res Total 25461 | 48 452 171 264 212 1252 752 602 168 2363 614 265 77 516 580 1653 92 115 345 3460 557 215 771 595 1974 268 304 140 781 2176 1562 398 282 285 1152 Wait 3802 | . . . . . 163 55 31 . 290 . . . 90 33 250 . 5 3 1016 62 . 85 . 278 . . . . 503 390 29 . 149 370 Move 20117 | 33 366 156 257 186 850 604 532 145 1983 597 261 77 424 497 1216 86 99 308 2311 477 213 653 593 1617 265 293 127 749 1609 1107 298 271 126 731 Hop 68 | . . . . . . . 1 . . . . . . 1 4 2 . 1 34 . . . . 5 . . . 1 8 . . 1 . 10 Pick Up 163 | 7 11 . 1 7 31 8 5 . 9 2 . . . 2 14 1 1 . 21 . . 4 . 10 . . 2 2 8 1 11 2 . 3 Fast Attach 109 | 1 2 . . . 3 6 . 2 8 . 1 . . 6 . . 3 3 9 4 1 9 . 15 2 2 4 . 9 8 . 2 . 9 Attach 136 | 6 4 1 . 5 21 3 13 . 5 2 . . . 1 16 1 1 . 18 . . 3 . 7 . . 2 2 3 2 12 1 . 7 Detach 15 | . . . . . . . . . . . . . . . 2 . . 1 1 . . . . 2 . . . 1 . . 3 1 . 4 Swap 29 | . 2 . 2 . 9 5 . 1 3 . . . . . . . . . . . . . . 1 . . . 2 1 . 2 . . 1 Drop 162 | . 5 . . 1 26 12 14 2 10 . . . . 5 7 2 . . 10 2 1 14 . 12 1 2 5 1 11 5 5 1 . 8 Fire 444 | 1 60 14 . 13 148 48 . 18 6 3 . . . 21 21 . . 3 17 . . . . 8 . 7 . 10 4 . 35 3 . 4 Melee 197 | . . . 4 . . 5 5 . 10 2 3 . 2 11 16 . 6 26 13 11 . . 2 18 . . . 10 20 30 3 . . . Ram 5 | . . . . . . . . . . . . . . . . . . . . . . . . . . . . . . . . . . 5 Kick . | . . . . . . . . . . . . . . . . . . . . . . . . . . . . . . . . . . . Crush 9 | . 2 . . . 1 6 . . . . . . . . . . . . . . . . . . . . . . . . . . . . Escape Stasis 56 | . . . . . . . . . . . . . . . 45 . . . . . . . . . . . . 1 . . . . 10 . Rewire 87 | . . . . . . . . . . . . . . 3 61 . . . . . . 3 . 1 . . . . . 19 . . . . Trap 62 | . . . . . . . 1 . 39 8 . . . . 1 . . . 10 1 . . . . . . . 2 . . . . . . Miscellaneous . | . . . . . . . . . . . . . . . . . . . . . . . . . . . . . . . . . . . Route ------- -11/Scrapyard -10/Materials (discovered 3 exits: [*Mat x2] / [*Min]) -10/Mines (discovered 2 exits: [*Mat] / *Exi) -10/Exiles -9/Mines -8/Materials (discovered 4 exits: *Fac x3 / *Sto) -8/Storage -7/Factory (discovered 2 exits: Low x2) -7/Waste -7/Factory (discovered 3 exits: *Fac / *Low x2) -7/Lower Caves -7/Lower Caves (discovered 2 exits: *Fac / *Dat) -7/Data Miner -6/Proximity Caves -6/Factory (discovered 6 exits: Fac x4 / *Ext x2) -6/Extension (discovered 3 exits: *Fac x2 / *Cet) -6/Cetus -6/Archives -6/Hub_04(d) (discovered 4 exits: *Fac x4) -5/Factory (discovered 3 exits: *Fac / *Upp x2) -5/Upper Caves -5/Upper Caves (discovered 2 exits: *Fac / *War) -5/Warlord -4/Proximity Caves -4/Factory (discovered 6 exits: *Res x4 / *Upp x2) -4/Upper Caves -4/Upper Caves -4/Zhirov -3/Proximity Caves -3/Research (discovered 6 exits: Res x3 / *Arm / Tes x2) -3/Armory -3/Lab -2/Research -2/Garrison -2/Research (discovered 5 exits: *Acc x3 / Qua x2) History --------- Turn | Location | Event 9 | -11/Scrapyard | Discovered new exit (range 16) 56 | -11/Scrapyard | Entered Materials 234 | -10/Materials | Discovered new exit (range 8) 301 | -10/Materials | Build established: Mutant 437 | -10/Materials | Discovered new exit (range 5) 556 | -10/Materials | Discovered new exit (range 8) 841 | -10/Materials | Entered Mines 846 | -10/Mines | Discovered new exit (range 10) 883 | -10/Mines | Learned Materials garrison access intel 1126 | -10/Mines | Deemed a non-threat by the Exiles lab entrance 1128 | -10/Mines | Discovered new exit (range 5) 1134 | -10/Mines | Entered Exiles 1174 | -10/Exiles | Met 8R-AWN 1215 | -10/Exiles | Met EX-HEX 1260 | -10/Exiles | Met EX-BIN 1324 | -10/Exiles | Aligned with FarCom system 1326 | -10/Exiles | Given EX-Vault access code 1363 | -10/Exiles | Opened EX-Vault 1374 | -10/Exiles | Found AWS/Gauss 1405 | -10/Exiles | Warned to stay clear of 0b10 Research branches 1449 | -10/Exiles | Met EX-DEC 1491 | -10/Exiles | Learned location of Zion (-6) 1539 | -10/Exiles | Discovered new exit (range 10) 1559 | -10/Exiles | Left Exiles lab with AWS/Gauss 1559 | -10/Exiles | Entered Mines 1570 | -9/Mines | Learned Materials machine intel 1597 | -9/Mines | Met a Derelict bent on vengeance 1747 | -9/Mines | A weapon hastily lodged in a ceiling crevice suddenly fell to the ground 1814 | -9/Mines | Joined a pair of Derelicts in attacking an 0b10 outpost 1883 | -9/Mines | Discovered new exit (range 10) 1901 | -9/Mines | Core integrity fell below 50% 1942 | -9/Mines | Lost 5 parts (1p2n2w) 1946 | -9/Mines | Entered Materials 1946 | -8/Materials | Evolved 4 slots: Propulsion x1, Utility x3 1947 | -8/Materials | Loaded intel: 57 machine locations 1948 | -8/Materials | Loaded intel: 1 garrison access location 1999 | -8/Materials | Garrison activated, responded to threat 2498 | -8/Materials | Discovered new exit (range 3) 3045 | -8/Materials | Identified exit to Storage 3052 | -8/Materials | Discovered new exit (range 3) 3865 | -8/Materials | Discovered new exit (range 10) 3946 | -8/Materials | First assault squad dispatched 3988 | -8/Materials | Entered Storage 4239 | -8/Storage | Repaired Adv. Heat Sink 4449 | -8/Storage | Core integrity fell below 50% 4552 | -8/Storage | Build established: Scavenger-Mutant 4552 | -8/Storage | Discovered new exit (range 10) 4677 | -8/Storage | Assisted by bots powering up and referring to "LRC-V3" 4788 | -8/Storage | First assault squad dispatched 4964 | -8/Storage | Garrison activated, responded to threat 5201 | -8/Storage | Entered Factory 5201 | -7/Factory | Evolved 2 slots: Utility x2 5365 | -7/Factory | Identified exit to Lower Caves 5524 | -7/Factory | Sucked down chute 5524 | -7/Factory | Entered Waste 5545 | -7/Waste | Spotted C-40 Crusher 5546 | -7/Waste | Spotted C-40 Crusher 5596 | -7/Waste | Spotted C-40 Crusher 5597 | -7/Waste | Spotted C-40 Crusher 5598 | -7/Waste | Spotted C-40 Crusher 5601 | -7/Waste | Spotted C-40 Crusher 5605 | -7/Waste | Discovered new exit (range 15) 5606 | -7/Waste | Build established: Wizard-Sprinter 5612 | -7/Waste | Entered Factory 5735 | -7/Factory | Repaired Lgt. Deuterium Engine 5835 | -7/Factory | Garrison activated, responded to threat 5907 | -7/Factory | Destroyed 10 combat bots 5973 | -7/Factory | Fabricated O-24 Administrator (x1) 6033 | -7/Factory | Fabricated M-28 Smith (x1) 6169 | -7/Factory | Discovered new exit (range 16) 6192 | -7/Factory | Repaired Lgt. Deuterium Engine 6224 | -7/Factory | Repaired Imp. VTOL Module 6527 | -7/Factory | Fabricated Y-54 Guardian (x2) 6606 | -7/Factory | Entered Lower Caves 6610 | -7/Lower Caves | Learned 8 Factory zone layouts 6714 | -7/Lower Caves | Encountered a Warlord checkpoint 6769 | -7/Lower Caves | Learned location of 1 exit from Factory 6798 | -7/Lower Caves | Discovered new exit (range 10) 6802 | -7/Lower Caves | Entered another Lower Caves area 6804 | -7/Lower Caves | Learned location of 1 exit from Factory 6813 | -7/Lower Caves | Discovered new exit (range 6) 6826 | -7/Lower Caves | Learned location of 1 exit from Research 6826 | -7/Lower Caves | Learned 8 Factory zone layouts 6826 | -7/Lower Caves | Learned 6 Upper Caves zone layouts 6826 | -7/Lower Caves | Learned Research trap positions 6826 | -7/Lower Caves | Learned Armory trap positions 6826 | -7/Lower Caves | Learned Research garrison access intel 6827 | -7/Lower Caves | Attracted the attention of an 0b10 base 6869 | -7/Lower Caves | Spotted B-75 Beast 6880 | -7/Lower Caves | Core integrity fell below 50% 6882 | -7/Lower Caves | Discovered new exit (range 10) 6886 | -7/Lower Caves | Entered Data Miner 6886 | -7/Data Miner | Discovered new exit (range 6) 6892 | -7/Data Miner | Met Data Miner 6897 | -7/Data Miner | Learned location of Section 7 (-2) 6897 | -7/Data Miner | Acquired the access code to Warlord's prototype stash 6902 | -7/Data Miner | Received God Mode back door access code from Data Miner 6909 | -7/Data Miner | Entered Proximity Caves 6970 | -6/Proximity Caves | Attracted the attention of an 0b10 checkpoint 6974 | -6/Proximity Caves | Escorted by Enhanced Grunt 7122 | -6/Proximity Caves | Discovered new exit (range 13) 7126 | -6/Proximity Caves | Entered Factory 7126 | -6/Factory | Evolved 2 slots: Utility x1, Weapon x1 7127 | -6/Factory | Identified exit to Extension 7127 | -6/Factory | Identified exit to Factory 7252 | -6/Factory | Incoming assault squad redirected 7390 | -6/Factory | Entered Extension 7390 | -6/Extension | Accompanied by 2 allies 7399 | -6/Extension | Identified exit to Cetus 7486 | -6/Extension | Rescued a captive Derelict 7487 | -6/Extension | Rescued a captive Derelict 7500 | -6/Extension | Rescued A7 7582 | -6/Extension | Central database locked down 7739 | -6/Extension | Spotted B-75 Beast 7784 | -6/Extension | Destroyed B-75 Beast 7797 | -6/Extension | Spotted B-75 Beast 7812 | -6/Extension | Extracted ID and sensor layout for unrecognized location from A7's data core 7826 | -6/Extension | Rescued a captive Derelict 7828 | -6/Extension | Rescued a captive Derelict 7956 | -6/Extension | Energy Cycler disabled 8090 | -6/Extension | First assault squad dispatched 8138 | -6/Extension | Incoming assault squad redirected 8238 | -6/Extension | Entered Cetus 8238 | -6/Cetus | Accompanied by 3 allies 8245 | -6/Cetus | Spotted Cetus Guard 8245 | -6/Cetus | Spotted Cetus Guard 8245 | -6/Cetus | Spotted Cetus Guard 8245 | -6/Cetus | Spotted Cetus Guard 8266 | -6/Cetus | Discovered new exit (range 16) 8272 | -6/Cetus | Entered Archives 8278 | -6/Archives | Met Zhirov 8284 | -6/Archives | Reinforcements dispatched to Archives 8299 | -6/Archives | Lost 3 parts (1p1n1u) 8313 | -6/Archives | Unable to access archive contents 8313 | -6/Archives | Discovered new exit (range 16) 8317 | -6/Archives | Read partially decrypted archive contents 8329 | -6/Archives | Reinforcements dispatched to Archives 8331 | -6/Archives | Zhirov warped through subspace 8336 | -6/Archives | Entered Hub_04(d) 8393 | -6/Hub_04(d) | Core integrity fell below 50% 8425 | -6/Hub_04(d) | Lost 4 parts (2n2u) 8540 | -6/Hub_04(d) | Network Hub disabled 8548 | -6/Hub_04(d) | Entered Factory 8548 | -5/Factory | Evolved 2 slots: Propulsion x1, Utility x1 8549 | -5/Factory | Identified exit to Upper Caves 8612 | -5/Factory | Fabricated Imp. VTOL Module (x1) 8701 | -5/Factory | Fabricated Imp. VTOL Module? 8767 | -5/Factory | Fabricated Imp. VTOL Module (x1) 8828 | -5/Factory | Fabricated Imp. VTOL Module (x1) 8886 | -5/Factory | Fabricated Imp. VTOL Module (x1) 9046 | -5/Factory | Local fabrication network quarantined 9148 | -5/Factory | First assault squad dispatched 9276 | -5/Factory | Incoming assault squad redirected 9476 | -5/Factory | Incoming assault squad redirected 9499 | -5/Factory | Central database locked down 9606 | -5/Factory | Incoming investigation squad redirected 9651 | -5/Factory | Discovered new exit (range 3) 9767 | -5/Factory | Incoming assault squad redirected 9777 | -5/Factory | Incoming assault squad redirected 9900 | -5/Factory | Repaired Imp. VTOL Module? 9962 | -5/Factory | Repaired Mic. Fission Core? 10030 | -5/Factory | Repaired Adv. Datajack? 10098 | -5/Factory | Repaired Imp. VTOL Module? 10164 | -5/Factory | Repaired Imp. VTOL Module? 10225 | -5/Factory | Repaired Mic. Fission Core? 10457 | -5/Factory | Entered Upper Caves 10460 | -5/Upper Caves | Encountered a Warlord checkpoint 10636 | -5/Upper Caves | Attracted the attention of an 0b10 outpost 10663 | -5/Upper Caves | Learned Factory terminal intel 10677 | -5/Upper Caves | Discovered new exit (range 7) 10679 | -5/Upper Caves | Entered another Upper Caves area 10680 | -5/Upper Caves | Discovered new exit (range 8) 10687 | -5/Upper Caves | Attracted the attention of an 0b10 checkpoint 10704 | -5/Upper Caves | Spotted B-75 Beast 10725 | -5/Upper Caves | Encountered a Warlord checkpoint 10726 | -5/Upper Caves | Discovered new exit (range 15) 10732 | -5/Upper Caves | Learned Factory stockpile data 10737 | -5/Upper Caves | Entered Warlord 10797 | -5/Warlord | Visited the Vortex Lab 10800 | -5/Warlord | Found Prototype Energy Cannon 10800 | -5/Warlord | Identified Vortex Cannon 10802 | -5/Warlord | Found Prototype Energy Gun 10802 | -5/Warlord | Identified Vortex Rifle 10807 | -5/Warlord | Found Vortex Rifle 10819 | -5/Warlord | Warlord's base attacked by MAIN.C 10838 | -5/Warlord | Learned Quarantine emergency access door positions 10838 | -5/Warlord | Learned Research stockpile data 10838 | -5/Warlord | Learned 4 Access zone layouts 10839 | -5/Warlord | Learned Research security intel 10839 | -5/Warlord | Learned Factory terminal intel 10839 | -5/Warlord | Learned Research fabricator intel 10874 | -5/Warlord | Met Warlord 10878 | -5/Warlord | Opened Warlord's prototype stash 10899 | -5/Warlord | Found Prototype Processor 10923 | -5/Warlord | Opened side exit 10991 | -5/Warlord | Discovered new exit (range 9) 11030 | -5/Warlord | Entered Proximity Caves 11068 | -4/Proximity Caves | Learned Research terminal intel 11193 | -4/Proximity Caves | Spotted B-86 Titan 11200 | -4/Proximity Caves | Core integrity fell below 50% 11200 | -4/Proximity Caves | Discovered new exit (range 15) 11204 | -4/Proximity Caves | Attracted the attention of an 0b10 checkpoint 11205 | -4/Proximity Caves | Learned Research garrison access intel 11207 | -4/Proximity Caves | Entered Factory 11207 | -4/Factory | Evolved 2 slots: Power x1, Utility x1 11209 | -4/Factory | Loaded intel: 19 terminal locations 11507 | -4/Factory | Identified exit to Upper Caves 11650 | -4/Factory | Fabricated O-24 Administrator (x1) 11703 | -4/Factory | Fabricated Adv. Hacking Suite (x1) 11723 | -4/Factory | Identified Spectral Analyzer 11777 | -4/Factory | Identified exit to Research 11780 | -4/Factory | Central database locked down 11808 | -4/Factory | Fabricated H-66 Slayer? 11880 | -4/Factory | Repaired Mic. Fission Core 11900 | -4/Factory | Repaired Mic. Fission Core 11905 | -4/Factory | Local fabrication network quarantined 11934 | -4/Factory | Repaired Neutron Missile Launcher 11957 | -4/Factory | First assault squad dispatched 11973 | -4/Factory | Repaired Exp. Propulsion Shielding 11981 | -4/Factory | Incoming assault squad redirected 11987 | -4/Factory | Incoming assault squad redirected 12027 | -4/Factory | Entered Upper Caves 12098 | -4/Upper Caves | Discovered new exit (range 8) 12100 | -4/Upper Caves | Entered another Upper Caves area 12120 | -4/Upper Caves | Attracted the attention of an 0b10 checkpoint 12126 | -4/Upper Caves | Learned Research emergency access door positions 12134 | -4/Upper Caves | Encountered a Warlord checkpoint 12149 | -4/Upper Caves | Spotted B-86 Titan 12187 | -4/Upper Caves | Discovered new exit (range 4) 12195 | -4/Upper Caves | Entered Zhirov 12195 | -4/Zhirov | Discovered new exit (range 3) 12206 | -4/Zhirov | Learned location of Quarantine (-2) 12206 | -4/Zhirov | Learned location of Testing (-3) 12206 | -4/Zhirov | Learned location of Command (-1) 12212 | -4/Zhirov | Found Alien Artifact 12212 | -4/Zhirov | Identified Integrated Reactor 12212 | -4/Zhirov | Installed Integrated Reactor, increased core energy generation (+10) 12231 | -4/Zhirov | Found Alien Artifact 12241 | -4/Zhirov | Entered Proximity Caves 12263 | -3/Proximity Caves | Attracted the attention of an 0b10 checkpoint 12325 | -3/Proximity Caves | Attracted the attention of an 0b10 outpost 12481 | -3/Proximity Caves | Core integrity fell below 50% 12489 | -3/Proximity Caves | Discovered exit to Research (range 10) 12492 | -3/Proximity Caves | Entered Research 12492 | -3/Research | Evolved 2 slots: Propulsion x1, Utility x1 12493 | -3/Research | Identified exit to Armory 12494 | -3/Research | Identified exit to Research 12495 | -3/Research | Loaded intel: 65 trap records 12499 | -3/Research | Loaded intel: 18 terminal locations 12500 | -3/Research | Loaded intel: 4 fabricator locations 12501 | -3/Research | Loaded intel: 3 garrison access locations 12635 | -3/Research | Identified exit to Testing 12725 | -3/Research | Found Antimissile System 12750 | -3/Research | Identified Transdimensional Reconstructor 13289 | -3/Research | Repaired Exp. Propulsion Shielding 13374 | -3/Research | Found Adv. Kinecellerator 13408 | -3/Research | Spotted B-86 Titan 13490 | -3/Research | Found Molecular Scythe 13508 | -3/Research | Found Prototype Processor 13508 | -3/Research | Identified Exp. Melee Analysis Suite 13513 | -3/Research | Entered Armory 13514 | -3/Armory | Loaded intel: 39 trap records 13545 | -3/Armory | Fabricated O-24 Administrator (x1) 13574 | -3/Armory | Fabricated M-28 Smith (x1) 13630 | -3/Armory | Fabricated Cld. Nuclear Pulse Thruster (x1) 13672 | -3/Armory | Fabricated Cld. Nuclear Pulse Thruster (x1) 14058 | -3/Armory | Fabricated Mic. Fission Core? 14078 | -3/Armory | Fabricated B-74 Champion? 14132 | -3/Armory | Fabricated B-74 Champion (x3) 14174 | -3/Armory | Fabricated Adv. Armor Integrity Analyzer (x1) 14190 | -3/Armory | Fabricated H-88 Terminator (x2) 14271 | -3/Armory | Spotted B-86 Titan 14276 | -3/Armory | Warped through subspace to slip node 14276 | -3/Armory | Discovered new exit (range 1) 14277 | -3/Armory | Entered Lab 14277 | -3/Lab | Discovered exit to Research (range 9) 14280 | -3/Lab | Hidden lab's door opened automatically 14280 | -3/Lab | Sensor layout match revealed 14281 | -3/Lab | Gained access to the hidden lab's interior 14281 | -3/Lab | Detected for breach 14290 | -3/Lab | Found Alien Artifact 14291 | -3/Lab | Identified Integrated Dissipator 14291 | -3/Lab | Installed Integrated Dissipator, increased core heat dissipation (+20) 14293 | -3/Lab | Confronted by A5 14295 | -3/Lab | Disabled Active System Cloaker 14310 | -3/Lab | Found Prototype Protection 14311 | -3/Lab | Identified Med. Regenerative Plating 14312 | -3/Lab | Found Prototype Hackware 14313 | -3/Lab | Identified Quantum Router 14316 | -3/Lab | Found Prototype Energy Gun 14317 | -3/Lab | Identified Hyp. EM Gauss Rifle 14348 | -3/Lab | Found Prototype Energy Cannon 14351 | -3/Lab | Identified Potential Cannon 14365 | -3/Lab | System corruption reached 10% 14466 | -3/Lab | Lost 4 parts (1p1n1u1w) 14469 | -3/Lab | Destroyed A5 14475 | -3/Lab | Found Alien Artifact 14478 | -3/Lab | Identified Core Regenerator 14478 | -3/Lab | Used Core Regenerator, restored core integrity (+325) 14487 | -3/Lab | Found Transdimensional Reconstructor 14502 | -3/Lab | Entered Research 14502 | -2/Research | Warlord forces began assault on 0b10 14502 | -2/Research | Evolved 2 slots: Propulsion x1, Utility x1 14503 | -2/Research | Loaded intel: 4 garrison access locations 14586 | -2/Research | Identified exit to Garrison 14595 | -2/Research | Entered Garrison 14597 | -2/Garrison | Installed Relay Interface Framework 14711 | -2/Garrison | Spotted B-90 Cyclops 14768 | -2/Garrison | Triggered checkpoint 14770 | -2/Garrison | Triggered checkpoint 14787 | -2/Garrison | Discovered new exit (range 14) 14791 | -2/Garrison | Entered Research 14847 | -2/Research | Fabricated Adv. Hacking Suite (x1) 14896 | -2/Research | Local fabrication network quarantined 14903 | -2/Research | Fabricated Adv. Hacking Suite (x1) 14991 | -2/Research | Spotted B-90 Cyclops 15011 | -2/Research | Identified exit to Quarantine 15011 | -2/Research | Identified exit to Access 15303 | -2/Research | Hacking Suite fried by hacking feedback 15365 | -2/Research | Intercept squad dispatched 15375 | -2/Research | Spotted Tracker 15375 | -2/Research | Spotted Tracker 15376 | -2/Research | Warped through subspace 15414 | -2/Research | Core integrity fell below 50% 15422 | -2/Research | Spotted Combat Programmer 15426 | -2/Research | Core integrity fell below 20% 15436 | -2/Research | Destroyed by Tracker with Immobilizer Last Messages --------------- 15410_ Slammed into Y-72 Warden. 15411_ Field Propulsion Drive destroyed. 15416_ Slammed into U-05 Engineer. 15417_ Slammed into K-01 Serf. 15418_ Slammed into R-10 Processor. 15422_ C-30 ARC bursts open, deploying its payload. 15422_ H-88 Terminator unfolds itself. 15422_ Penetrated by Slug. 15422_ Impulse Thruster destroyed. 15422_ Penetrated by Slug. 15423_ Slug penetrates Wall. 15423_ Penetrated by Slug. 15424_ Penetrated by EMDS Slug. 15425_ Penetrated by Slug. 15426_ Slug penetrates K-01 Serf. 15426_ Slug penetrates Wall. 15426_ Penetrated by EMDS Slug. 15427_ Imp. Hacking Suite destroyed. 15430_ M-28 Smith destroyed. 15430_ Penetrated by EMDS Slug. Map ----- +----------------------------------------------------+ | ?????????????????????????????????????????????????? | | ?????????????????????????????????????????????????? | | ?????????????????????????????????????????????????? | | ?????????????????????????????????????????????????? | | ?????????????????????????????????????????????????? | | ?????????????????????????????????????????????????? | | ?????????????????????????????????????????????????? | | ?????????????????????????????????????????????????? | | ?????????????????????????????????????????????????? | | ?????????????????????????????????????????????????? | | ?????????????????????????????????????????????????? | | ?????????????????????????????????????????????????? | | ?????????????????????????????????????????????????? | | ?????????????????????????????????????????????????? | | ??????????????????????????######?????????????????? | | ??????????????????????????# #?????????????????? | | ??????????????????????????# #?????????????????? | | ??????????????????????????# #?????????????????? | | ??????????????????????????# #?????????????????? | | ??????????????????????????# #?????????????????? | | ?????????????????????#????# ??#+####+###??????? | | ?????????????????????# ???#! ??# #??????? | | ???????????????????### #??? ???# ######## | | ???????????????????# ?? ???# | | ???????????????????# ###+##### | | ???????????????????+ < @ | | ???????????????????# ###### sp | | ???????????????????# ?????# | | ???????????????????###+#??????# ] =!! =! | | ??????????????????????????????# =b !! | | ??????????????????????????????# %=h | | ??????????????????????????????# =pp | | ??????????????????????????????####+########## | | ????????????????????????????????????????????# | | ????????????????????????????????????????????# | | ?????????????????????????????????????######?# | | ?????????????????????????????????????# # " | | ?????????????????????????????????????#! # | | ?????????????????????????????????????# + | | ?????????????????????????????????????# # ## | | ?????????????????????????????????????# ## ##? | | ?????????????????????????????????????# ??# #?? | | ?????????????????????????????????????######??# #?? | | ?????????????????????????????????????????????# #?? | | ?????????????????????????????????????????#####+### | | ?????????????????????????????????????????# | | ?????????????????????????#????########???# | | ??????????????????????? ???? #???# | | ??????????????????????? ?? #???# [ | | ??????????????????????? #???# ! | +----------------------------------------------------+ Best States ------------- Heat Dissipation 69 Energy Generation 44 Energy Capacity 1240 Matter Stores 616 Matter Capacity 700 Sight Range 16 Terrain Scan Density 10 Armor Coverage 450 Resistance: KI 25 Resistance: TH 10 Propulsion Shielding 90 Utility Shielding 90 Evasion (%) 76 Targeting Accuracy 8 Melee Accuracy 12 Armor Integrity Analysis 66 Recoil Reduction 3 Offensive Hacking 92 Defensive Hacking 67 Item Schematics ----------------- Imp. VTOL Module | -8/Materials | Scanalyzed Hacking Suite | -8/Materials | Scanalyzed Adv. EMP Blaster | -8/Materials | Scanalyzed Hrd. Light Armor Plating | -8/Materials | Extracted Imp. Sensor Array | -8/Materials | Extracted Imp. Propulsion Shielding | -7/Factory | Hacked System Shield | -7/Factory | Scanalyzed Cld. Pulse Rifle | -7/Factory | Scanalyzed Combat Drone Bay | -7/Data Miner | Free Lgt. Regenerative Plating | -7/Data Miner | Free Triangulator | -7/Data Miner | Free Adv. Hacking Suite | -6/Extension | Hacked Adv. Thermal Generator | -6/Extension | Hacked Imp. Core Analyzer | -5/Factory | Scanalyzed Mic. Fission Core | -5/Factory | Scanalyzed Adv. Datajack | -5/Factory | Scanalyzed Exp. Terrain Scanner | -5/Factory | Hacked Exp. Terrain Scan Processor | -5/Factory | Hacked Exp. Propulsion Shielding | -5/Factory | Hacked Imp. System Restoration Module | -5/Factory | Hacked Arm. Heavy Treads | -5/Factory | Hacked Adv. Heavy Treads | -5/Factory | Hacked Adv. Cryofiber Web | -5/Factory | Hacked Matter Neutralizer | -5/Factory | Hacked Adv. Component Analysis Suite | -5/Factory | Hacked Lrn. Proton Cannon | -5/Factory | Hacked Impulse Thruster Array | -5/Factory | Hacked Hyp. Gauss Rifle | -5/Factory | Scanalyzed System Backup Module | -5/Factory | Extracted Integration Mediator | -5/Factory | Extracted Hyp. Coil Gun | -5/Factory | Extracted Overload Regulator | -5/Factory | Extracted Imp. Launcher Guidance Computer | -5/Factory | Extracted Adv. Armor Integrity Analyzer | -4/Factory | Hacked Hvy. Gauss Cannon | -4/Factory | Hacked Imp. Heavy Siege Treads | -4/Factory | Hacked Cld. Nuclear Pulse Thruster | -4/Factory | Scanalyzed Spectral Analyzer | -4/Factory | Scanalyzed Adv. Force Field | -4/Factory | Hacked Antigrav Array | -4/Factory | Hacked Tri-rail Accelerator | -4/Factory | Hacked Neutron Missile Launcher | -4/Factory | Scanalyzed Adv. Matter Compressor | -4/Factory | Scanalyzed Adv. System Shield | -4/Factory | Scanalyzed Cld. Impulse Thruster | -4/Factory | Scanalyzed Assault Drone Bay | -4/Zhirov | Free Exp. Heat Sink | -4/Zhirov | Free Exp. Optical Array | -4/Zhirov | Free Imp. Arc Thrower | -4/Zhirov | Free Adv. Reaction Control System | -3/Research | Hacked Centrium Medium Armor Plating | -3/Research | Scanalyzed Adv. Core Analyzer | -3/Armory | Hacked Robot Schematics ------------------ M-28 Smith | -8/Storage | Hacked O-24 Administrator | -7/Factory | Hacked L-31 Rogue | -7/Factory | Hacked S-27 Virus | -7/Factory | Hacked Y-54 Guardian | -7/Factory | Hacked G-50 Soldier | -7/Data Miner | Free G-67 Veteran | -7/Data Miner | Free X-72 Disruptor | -7/Data Miner | Free H-66 Slayer | -7/Data Miner | Free P-70 Sage | -7/Data Miner | Free I-36 Angel | -7/Data Miner | Free D-63 Destroyer | -5/Factory | Hacked M-22 Extractor | -5/Factory | Hacked R-10 Processor | -5/Factory | Hacked G-47 Trooper | -3/Research | Hacked M-36 Artificer | -3/Research | Hacked H-88 Terminator | -3/Armory | Hacked G-73 Enforcer | -3/Armory | Hacked Fabricated ------------ O-24 Administrator | x1 | -7/Factory M-28 Smith | x1 | -7/Factory Y-54 Guardian | x2 | -7/Factory Imp. VTOL Module | x1 | -5/Factory Imp. VTOL Module | x1 | -5/Factory Imp. VTOL Module | x1 | -5/Factory Imp. VTOL Module | x1 | -5/Factory Imp. VTOL Module | x1 | -5/Factory O-24 Administrator | x1 | -4/Factory Adv. Hacking Suite | x1 | -4/Factory H-66 Slayer | x2 | -4/Factory O-24 Administrator | x1 | -3/Armory M-28 Smith | x1 | -3/Armory Cld. Nuclear Pulse Thruster | x1 | -3/Armory Cld. Nuclear Pulse Thruster | x1 | -3/Armory Mic. Fission Core | x2 | -3/Armory B-74 Champion | x3 | -3/Armory | Preloaded B-74 Champion | x3 | -3/Armory | Preloaded Adv. Armor Integrity Analyzer | x1 | -3/Armory H-88 Terminator | x2 | -3/Armory Adv. Hacking Suite | x1 | -2/Research Adv. Hacking Suite | x1 | -2/Research Alien Tech Used ----------------- Integrated Reactor Transdimensional Reconstructor Integrated Dissipator Core Regenerator Achievements -------------- None Challenges ------------ None Game ------ Seed PotentialSurveybotAutohacker Manual? 0 Play Time 03:41:06 Cumulative 651.7 hours Start 2021.11.23 @ 23:05:53 End 2021.11.24 @ 02:45:47 Sessions 1 Manual Loads 0 Difficulty Rogue Special Mode None Game No. 649 Rogue 608 Adventurer 41 Explorer 0 Win Type - Total 31 Types 23/0/6/1/0/0/0/1/0 Lore% 92 Gallery% 93 Achievement% 79 Wizard Run 0 Options --------- ASCII 0 Keyboard 0 Movement Mouse Keybinds 0 Fullscreen 1 Font 18/Terminus Map View 76x50 Tactical HUD 1 Map Filters NONE Filters NONE Steam 1 RUN: 4aa0895e-0f6e-4584-a161-9eb914d313a2